Workbook

Sheet APROVADO
A1: Incentivo Fiscal Federal
A2: LIVRO ILUSTRADO DE ARTE - VIDA E OBRA DE M PORTINARI
A3: Oficina/Workshop
A4: - Pré-Produção / Preparação
A5: SP - São Paulo
B6: ITEM | C6: DIAS | D6: QTDE | E6: OCOR. | F6: VL. UNITÁRIO | G6: VL. SOLICITADO | H6: JUSTIF. DO PROPONENTE
A7: 13 | B7: Coordenação artistica | C7: 120 | D7: 2 | E7: 4 | F7: 3000 | G7: =D7*E7*F7 -> 24000 | H7: Acompanhamento das ações educativas, atividades e apresentação de resultados intermediando e facilitando a relação entre artista, educadores, curadoria da exposição e participantes das ações educativas
A8: Total da UF | G8: =G7 -> 24000
A9: - Produção / Execução
A10: SP - São Paulo
B11: ITEM | C11: DIAS | D11: QTDE | E11: OCOR. | F11: VL. UNITÁRIO | G11: VL. SOLICITADO | H11: JUSTIF. DO PROPONENTE
A12: 14 | B12: Aluguel de ônibus | C12: 1 | D12: 4 | E12: 1 | F12: 900 | G12: =D12*E12*F12 -> 3600 | H12: Transporte gratuito para beneficiários da formação de plateia e capacitação (medida de ampliação de acesso0 irem à exposição
A13: 15 | B13: Arte educador | C13: 120 | D13: 8 | E13: 4 | F13: 2400 | G13: =D13*E13*F13 -> 76800 | H13: Mediar comunicação entre educadores, equipe técnica e artista, e multiplicar técnicas do artista a comunidades através de ações educativas, tendo como referencial as obras da exposição. Item acessório do produto principal como medida de contrapartida social, conforme Instrução Normativa.
A14: 16 | B14: Impressão | C14: 120 | D14: 2000 | E14: 1 | F14: 4.5 | G14: 9000 | H14: Relatório ilustrado, editado ao fim do projeto com textos informativos e imagens, como registro da medida de ampliação de acesso/formação de plateia. Não será comercializada e será distribuída a parceiros, às instituições onde as oficinas são realizadas, patrocinadores, MinC, e/ou entidades que atendam pessoas com deficiência intelectual.
A15: 17 | B15: Material de apoio pedagógico | C15: 120 | D15: 1 | E15: 3 | F15: 4000 | G15: 12000 | H15: Material pedagógico (artes) necessário e indispensável para aplicação das ações educativas, medida de democratização e ampliação do acesso e contrapartida social, conforme Instrução Normativa.
A16: Total da UF | G16: =SUM(G12:G15) -> 101400
B17: LIVRO
A18: - Pré-Produção / Preparação
A19: SP - São Paulo
B20: ITEM | C20: DIAS | D20: QTDE | E20: OCOR. | F20: VL. UNITÁRIO | G20: VL. SOLICITADO | H20: JUSTIF. DO PROPONENTE
A21: 1 | B21: Produção de Texto | C21: 90 | D21: 1 | E21: 4 | F21: 5000 | G21: =D21*E21*F21 -> 20000 | H21: Contrução do texto para o livro
A22: Total da UF | G22: =G21 -> 20000
A23: Total da Etapa | G23: =G22 -> 20000
A24: - Produção / Execução
A25: SP - São Paulo
B26: ITEM | C26: DIAS | D26: QTDE | E26: OCOR. | F26: VL. UNITÁRIO | G26: VL. SOLICITADO | H26: JUSTIF. DO PROPONENTE
A27: 2 | B27: Coordenação Gráfica | C27: 120 | D27: 1 | E27: 2 | F27: 2610 | G27: =D27*E27*F27 -> 5220 | H27: Acompanhamento da produção gráfica zelando pela qualidade do produto final.
A28: 3 | B28: Custo distribuição para bibliotecas | C28: 120 | D28: 1 | E28: 1 | F28: 2000 | G28: =D28*E28*F28 -> 2000 | H28: Distribuição a bibliotecas, espaços culturais e ONGs.
A29: 4 | B29: Designer | C29: 120 | D29: 1 | E29: 3 | F29: 4000 | G29: 12000 | H29: Produção, diagramação, concepção gráfica
A30: 5 | B30: Ficha Catalográfica e ISBN | C30: 120 | D30: 1 | E30: 1 | F30: 150 | G30: 150 | H30: Registro obrigatório.
A31: 6 | B31: Fotografia Artística (Fotógrafo, Tratamento, Revelação, etc.) | C31: 120 | D31: 1 | E31: 1 | F31: 20000 | G31: 20000 | H31: Fotografia das obras e imagens que estarão no livro. Saõ as fotos/imagens que estarão impressas no livro.
A32: 7 | B32: Gravação de vozes | C32: 120 | D32: 1 | E32: 1 | F32: 6000 | G32: 6000 | H32: Gravação de vozes para audiodescrição como medida de acessibilidade
A33: 8 | B33: Impressão | C33: 120 | D33: 3000 | E33: 1 | F33: 46 | G33: 138000 | H33: O valor de impressão unitário foi calculado com base na descrição técnica do produto. Ver no plano de trabalho.
A34: 9 | B34: Revisão de Texto | C34: 120 | D34: 90 | E34: 1 | F34: 36 | G34: 3240 | H34: Revisão para conclusão da produção de textos para o livro.
A35: 10 | B35: Tradução | C35: 120 | D35: 1 | E35: 1 | F35: 4000 | G35: 4000 | H35: Tradução dos textos do livro. O conteúdo do texto do livro estará em duas línguas.
A36: Total da UF | G36: =SUM(G27:G35) -> 190610
A37: - Assessoria Contábil e Juridica
A38: SP - São Paulo
B39: ITEM | C39: DIAS | D39: QTDE | E39: OCOR. | F39: VL. UNITÁRIO | G39: VL. SOLICITADO | H39: JUSTIF. DO PROPONENTE
A40: 11 | B40: Advogado | C40: 270 | D40: 1 | E40: 9 | F40: 1000 | G40: =D40*E40*F40 -> 9000 | H40: Serviços em atendimento à Instrução Normativa. Contratos, termos de cessão de direitos e etc.
A41: 12 | B41: Contador | C41: 270 | D41: 1 | E41: 9 | F41: 954 | G41: =D41*E41*F41 -> 8586 | H41: Acompanhamento financeiro e contábil, prestação de contas.
A42: Total da UF | G42: =SUM(G40:G41) -> 17586
A43: Exposição de Artes
A44: - Pré-Produção / Preparação
A45: SP - São Paulo
B46: ITEM | C46: DIAS | D46: QTDE | E46: OCOR. | F46: VL. UNITÁRIO | G46: VL. SOLICITADO | H46: JUSTIF. DO PROPONENTE
A47: 17 | B47: Curador | C47: 90 | D47: 1 | E47: 1 | F47: 15000 | G47: =D47*E47*F47 -> 15000 | H47: Responsável pela organização, montagem da exposição, seleção de obras, definição do escopo da ação paralela educativa (capacitação de educadores e oficinas de artes).
A48: Total da UF | G48: =G47 -> 15000
A49: Total da Etapa | G49: =G48 -> 15000
A50: - Produção / Execução
A51: SP - São Paulo
B52: ITEM | C52: DIAS | D52: QTDE | E52: OCOR. | F52: VL. UNITÁRIO | G52: VL. SOLICITADO | H52: JUSTIF. DO PROPONENTE
A53: 18 | B53: Adesivos | C53: 120 | D53: 1 | E53: 1 | F53: 2200 | G53: =D53*E53*F53 -> 2200 | H53: Serviço necessário e indispensável para produção da exposição - comunicação visual, sinalização
A54: 19 | B54: Cenografia/material/confecção | C54: 120 | D54: 1 | E54: 1 | F54: 4500 | G54: =D54*E54*F54 -> 4500 | H54: Serviço necessário e indispensável para produção da exposição - materiais para construção conceitual da exposição.
A55: 20 | B55: Coordenação geral | C55: 270 | D55: 1 | E55: 9 | F55: 5750 | G55: 51750 | H55: Acompanhamento geral do projeto em todas as suas fases, articulando e mediando as ações entre curador, artista, fornecedores, arte-educadores, coordenação educativa, editor, redator; prestação de contas.
A56: 21 | B56: Embalagem e acondicionamento para a exposição | C56: 120 | D56: 1 | E56: 2 | F56: 1100 | G56: 2200 | H56: Serviço necessário e indispensável para produção da exposição - manuseio das obras para transporte
A57: 22 | B57: Impressão em braile | C57: 120 | D57: 1 | E57: 1 | F57: 9000 | G57: 9000 | H57: Serviço necessário e indispensável para produção da exposição - medida de acessibilidade - etiquetas e textos explicativos das obras com versões fixados de forma a poderem ser lidos também por cadeirantes e pessoas de baixa estatura
A58: 23 | B58: Intérprete de libras | C58: 120 | D58: 2 | E58: 1 | F58: 1600 | G58: 3200 | H58: Serviço necessário e indispensável para produção da exposição - medida de acessibilidade.
A59: 24 | B59: Locação de Equipamento de projeção | C59: 120 | D59: 1 | E59: 1 | F59: 3000 | G59: 3000 | H59: Serviço necessário e indispensável para produção da exposição - parte integrante da cenografia
A60: 25 | B60: Locação de Espaço para Exposição | C60: 120 | D60: 1 | E60: 1 | F60: 5000 | G60: 5000 | H60: Serviço necessário e indispensável para produção da exposição . Locação terá como critérios: acessibilidade, mobilidade (valor médio)
A61: 26 | B61: Locação de Mobiliário | C61: 120 | D61: 1 | E61: 1 | F61: 2500 | G61: 2500 | H61: Serviço necessário e indispensável para produção da exposição - cenografia
A62: 27 | B62: Montagem e desmontagem | C62: 120 | D62: 1 | E62: 1 | F62: 2500 | G62: 2500 | H62: Serviço necessário e indispensável para produção e finalização da exposição
A63: 28 | B63: Projeto cenográfico | C63: 120 | D63: 1 | E63: 1 | F63: 6000 | G63: 6000 | H63: Serviço necessário e indispensável para produção da exposição - peças visuais da exposição, iluminação, sonorização e distribuição das peças a serem expostas.
A64: 29 | B64: Transporte de material | C64: 120 | D64: 1 | E64: 2 | F64: 1200 | G64: 2400 | H64: Serviço necessário e indispensável para produção da exposição - transporte das obras e materiais montagem de desmontagem
A65: Total da UF | G65: =SUM(G53:G64) -> 94250
A67: Administração do Projeto
A68: - Captação de Recursos
A69: SP - São Paulo
B70: ITEM | C70: DIAS | D70: QTDE | E70: OCOR. | F70: VL. UNITÁRIO | G70: VL. SOLICITADO | H70: JUSTIF. DO PROPONENTE
A71: 30 | B71: Remuneração para captação de recursos | C71: 1 | D71: 1 | E71: 1 | F71: 60110.1 | G71: =D71*E71*F71 -> 60110.1
A72: Total da UF | G72: =G71 -> 60110.1
A73: Total da Etapa
A74: - Custos Vinculados
A75: SP - São Paulo
B76: ITEM | C76: DIAS | D76: QTDE | E76: OCOR. | F76: VL. UNITÁRIO | G76: VL. SOLICITADO | H76: JUSTIF. DO PROPONENTE
A77: 31 | B77: Custos de Administração | C77: 1 | D77: 1 | E77: 1 | F77: 66789 | G77: =D77*E77*F77 -> 66789
A78: 32 | B78: Custos de Divulgação | C78: 1 | D78: 1 | E78: 1 | F78: 89052 | G78: =D78*E78*F78 -> 89052
A79: Total da UF | G79: =G77+G78 -> 155841
A80: Custo Total (Custo do Projeto + Valores de Outras Leis + Valores de Outras Fontes) | G80: 678797.1

Sheet ANEXO II
F2: PARCIAL ( )
C3: RELATÓRIO DE EXECUÇÃO DA RECEITA E DESPESA
C4: ANEXO II | F4: FINAL ( X )
A7: NOME DO PROJETO: MARYSIA PORTINARI - UNIVER SO PRÉ-EXISTENTE | F7: N.º PRONAC: 182445
A8: PROPONENTE: INSTITUTO OLGA KOS DE INCLUSÃO CULTURAL
A9: RECEITA | C9: VALOR | D9: ITEM ORÇAMENTARIO | F9: VALOR TOTAL DAS DESPESAS NO ITEM
D10: =CONCATENATE('itens projetos'!A5,".",'itens projetos'!B5) -> 13.Coordenação artistica | F10: =+'itens projetos'!J5 -> 0
D11: =CONCATENATE('itens projetos'!A6,".",'itens projetos'!B6) -> 14.Aluguel de ônibus | F11: =+'itens projetos'!J6 -> 0
D12: =CONCATENATE('itens projetos'!A7,".",'itens projetos'!B7) -> 15.Arte educador | F12: =+'itens projetos'!J7 -> 0
D13: =CONCATENATE('itens projetos'!A8,".",'itens projetos'!B8) -> 16.Impressão | F13: =+'itens projetos'!J8 -> 0
D14: =CONCATENATE('itens projetos'!A9,".",'itens projetos'!B9) -> 17.Material de apoio pedagógico | F14: =+'itens projetos'!J9 -> 0
D15: =CONCATENATE('itens projetos'!A10,".",'itens projetos'!B10) -> 1.Produção de Texto | F15: =+'itens projetos'!J10 -> 20000
D16: =CONCATENATE('itens projetos'!A11,".",'itens projetos'!B11) -> 2.Coordenação Gráfica | F16: =+'itens projetos'!J11 -> 5220
D17: =CONCATENATE('itens projetos'!A12,".",'itens projetos'!B12) -> 3.Custo distribuição para bibliotecas | F17: =+'itens projetos'!J12 -> 0
D18: =CONCATENATE('itens projetos'!A13,".",'itens projetos'!B13) -> 4.Designer | F18: =+'itens projetos'!J13 -> 0
D19: =CONCATENATE('itens projetos'!A14,".",'itens projetos'!B14) -> 5.Ficha Catalográfica e ISBN | F19: =+'itens projetos'!J14 -> 0
D20: =CONCATENATE('itens projetos'!A15,".",'itens projetos'!B15) -> 6.Fotografia Artística (Fotógrafo, Tratamento, Revelação, etc.) | F20: =+'itens projetos'!J15 -> 0
D21: =CONCATENATE('itens projetos'!A16,".",'itens projetos'!B16) -> 7.Gravação de vozes | F21: =+'itens projetos'!J16 -> 0
D22: =CONCATENATE('itens projetos'!A17,".",'itens projetos'!B17) -> 8.Impressão | F22: =+'itens projetos'!J17 -> 138000
D23: =CONCATENATE('itens projetos'!A18,".",'itens projetos'!B18) -> 9.Revisão de Texto | F23: =+'itens projetos'!J18 -> 3240
D24: =CONCATENATE('itens projetos'!A19,".",'itens projetos'!B19) -> 10.Tradução | F24: =+'itens projetos'!J19 -> 0
D25: =CONCATENATE('itens projetos'!A20,".",'itens projetos'!B20) -> 11.Advogado | F25: =+'itens projetos'!J20 -> 0
D26: =CONCATENATE('itens projetos'!A21,".",'itens projetos'!B21) -> 12.Contador | F26: =+'itens projetos'!J21 -> 0
D27: =CONCATENATE('itens projetos'!A22,".",'itens projetos'!B22) -> 17.Curador | F27: =+'itens projetos'!J22 -> 0
D28: =CONCATENATE('itens projetos'!A23,".",'itens projetos'!B23) -> 18.Adesivos | F28: =+'itens projetos'!J23 -> 0
D29: =CONCATENATE('itens projetos'!A24,".",'itens projetos'!B24) -> 19.Cenografia/material/confecção | F29: =+'itens projetos'!J24 -> 0
D30: =CONCATENATE('itens projetos'!A25,".",'itens projetos'!B25) -> 20.Coordenação geral | F30: =+'itens projetos'!J25 -> 0
D31: =CONCATENATE('itens projetos'!A26,".",'itens projetos'!B26) -> 21.Embalagem e acondicionamento para a exposição | F31: =+'itens projetos'!J26 -> 0
D32: =CONCATENATE('itens projetos'!A27,".",'itens projetos'!B27) -> 22.Impressão em braile | F32: =+'itens projetos'!J27 -> 0
D33: =CONCATENATE('itens projetos'!A28,".",'itens projetos'!B28) -> 23.Intérprete de libras | F33: =+'itens projetos'!J28 -> 0
D34: =CONCATENATE('itens projetos'!A29,".",'itens projetos'!B29) -> 24.Locação de Equipamento de projeção | F34: =+'itens projetos'!J29 -> 0
D35: =CONCATENATE('itens projetos'!A30,".",'itens projetos'!B30) -> 25.Locação de Espaço para Exposição | F35: =+'itens projetos'!J30 -> 0
D36: =CONCATENATE('itens projetos'!A31,".",'itens projetos'!B31) -> 26.Locação de Mobiliário | F36: =+'itens projetos'!J31 -> 0
D37: =CONCATENATE('itens projetos'!A32,".",'itens projetos'!B32) -> 27.Montagem e desmontagem | F37: =+'itens projetos'!J32 -> 0
A47: TOTAL DAS RECEITAS | C47: =SUM(C10:C46) -> 0 | D47: TOTAL DAS DESPESAS | F47: =SUM(F10:F46) -> 166460
A49: SALDO RECOLHIDO AO FNC | F49: =+C47-F47 -> -166460
A50: LOCAL - DATA :SÃO PAULO, _________/____________/____________ | D50: - NOME E ASSINATURA DO RESPONSÁVEL: WOLF VEL KOS TRAMBUCH

Sheet ANEXO III
M1: PARCIAL ( )
E2: RELAÇÃO DE PAGAMENTOS
E3: ANEXO III | M3: FINAL ( x )
A5: NOME DO PROJETO: MARYSIA PORTINARI - UNIVER SO PRÉ-EXISTENTE | M5: N.º PRONAC: 182445
A6: PROPONENTE: INSTITUTO OLGA KOS DE INCLUSÃO CULTURAL
A7: ITEM | B7: ITEM ORÇAMENTARIO | C7: FORNECEDOR | D7: C.N.P.J./C.P.F. | G7: CHEQUE/OP | H7: DATA DO DEBITO NA CONTA | I7: NUMERO DO DOC. FISCAL | J7: DATA DO DOCUMENTO FISCAL | M7: VALOR
A8: 1 | B8: =+'itens projetos'!B35 -> Remuneração para captação de recursos | C8: RIBEIRO DO VALLE CONS E ASS EM CAPTAÇÃO DE REC E G CULT LTDA | D8: 20.113.043/0001-60 | G8: 850005 | H8: 2019-01-22 | I8: NF 0044 | J8: 2019-01-21 | M8: 60110.1
A9: 2 | B9: impressão | C9: IPSIS GRAFICA E EDITORA S A | D9: 61.407.078/0001-10 | G9: 850010 | H9: 2019-02-06 | I9: NF 66349 | J9: 2019-01-31 | M9: 138000
A10: 3 | B10: coordenação gráfica | C10: KLNTOWITZ COMUNICAÇÃO LTDA | D10: 08.977.656/0001-70 | G10: 850011 | H10: 2019-01-30 | I10: NF 0250 | J10: 2019-01-29 | M10: 5220
A11: 4 | B11: revisão de texto | C11: KLNTOWITZ COMUNICAÇÃO LTDA | D11: 08.977.656/0001-70 | G11: 850012 | H11: 2019-01-30 | I11: NF 0251 | J11: 2019-01-29 | M11: 3240
A12: 5 | B12: produção de texto | C12: KLNTOWITZ COMUNICAÇÃO LTDA | D12: 08.977.656/0001-70 | G12: 850013 | H12: 2019-01-30 | I12: NF 0249 | J12: 2019-01-29 | M12: 20000
A13: 6 | B13: sitio de internet | C13: GALEANO INFORMATICA LTDA - ME | D13: 15.915.752/0001-50 | G13: 850014 | H13: 2019-01-31 | I13: NF 1056 | J13: 2019-01-31 | M13: 2000
A14: 7 | B14: custos de administração | C14: JOSIANE NACAMUTA - ME | D14: 01.742.102/0001-45 | G14: 850015 | H14: 2019-01-31 | I14: NF 0779 | J14: 2019-01-30 | M14: 2914.2
A15: 8
A16: 9
A17: 10
A18: 11
A19: 12
A20: 13
A21: 14
A22: 15
A23: 16
A24: 17
A25: 18
A26: 19
A27: 20
A28: 21
A29: 22
A30: 23
A31: 24
A32: 25
A33: 26
A34: 27
A35: 28
A36: 29
A37: 30
A38: 31
A39: 32
A40: 33
A41: 34
A42: 35
A43: 36
A44: 37
A45: 38
A46: 39
A48: SUBTOTAL | M48: =SUM(M8:M47) -> 231484.3 | N48: -707484.3 | O48: =SUM(M48:N48) -> -476000
A49: =+'ANEXO II '!A50 -> LOCAL - DATA :SÃO PAULO, _________/____________/____________ | D49: - NOME E ASSINATURA DO RESPONSÁVEL: WOLF VEL KOS TRAMBUCH | O49: =+'itens projetos'!G62 -> 476000 | P49: OFICIOS
O50: =SUM(O48:O49) -> 0 | P50: DIFERENÇA
A95: TOTAL | M95: =SUM(M48:M94) -> 231484.3
A96: =+A49 -> LOCAL - DATA :SÃO PAULO, _________/____________/____________ | F96: NOME E ASSINATURA DO RESPONSÁVEL: WOLF VEL KOS TRAMBUCH
N141: ENCARGOS
A142: TOTAL | M142: =SUM(M95:M141) -> 231484.3 | N142: -460421.42
A143: =+A96 -> LOCAL - DATA :SÃO PAULO, _________/____________/____________ | F143: NOME E ASSINATURA DO RESPONSÁVEL: WOLF VEL KOS TRAMBUCH

Sheet ANEXO IV
E3: PARCIAL ( )
C4: RELATÓRIO FISICO
C5: ANEXO IV | E5: FINAL ( X )
A8: NOME DO PROJETO: MARYSIA PORTINARI - UNIVER SO PRÉ-EXISTENTE | E8: N.º PRONAC: 182445
A9: PROPONENTE: INSTITUTO OLGA KOS DE INCLUSÃO CULTURAL
A11: PERÍODO :
A13: ITEM ORÇAMENTARIO | D13: QTDE. PROGRAMADO | E13: QTDE. EXECUTADA
A15: =CONCATENATE('itens projetos'!A5,".",'itens projetos'!B5) -> 13.Coordenação artistica | D15: 10
A16: =CONCATENATE('itens projetos'!A6,".",'itens projetos'!B6) -> 14.Aluguel de ônibus | D16: 10
A17: =CONCATENATE('itens projetos'!A7,".",'itens projetos'!B7) -> 15.Arte educador | D17: 500
A18: =CONCATENATE('itens projetos'!A8,".",'itens projetos'!B8) -> 16.Impressão | D18: 1
A19: =CONCATENATE('itens projetos'!A9,".",'itens projetos'!B9) -> 17.Material de apoio pedagógico | D19: 10
A20: =CONCATENATE('itens projetos'!A10,".",'itens projetos'!B10) -> 1.Produção de Texto | D20: 1
A21: =CONCATENATE('itens projetos'!A11,".",'itens projetos'!B11) -> 2.Coordenação Gráfica | D21: 10
A22: =CONCATENATE('itens projetos'!A12,".",'itens projetos'!B12) -> 3.Custo distribuição para bibliotecas | D22: 10
A23: =CONCATENATE('itens projetos'!A13,".",'itens projetos'!B13) -> 4.Designer | D23: 1
A24: =CONCATENATE('itens projetos'!A14,".",'itens projetos'!B14) -> 5.Ficha Catalográfica e ISBN | D24: 1
A25: =CONCATENATE('itens projetos'!A15,".",'itens projetos'!B15) -> 6.Fotografia Artística (Fotógrafo, Tratamento, Revelação, etc.) | D25: 9
A26: =CONCATENATE('itens projetos'!A16,".",'itens projetos'!B16) -> 7.Gravação de vozes | D26: 2000
A27: =CONCATENATE('itens projetos'!A17,".",'itens projetos'!B17) -> 8.Impressão | D27: 4
A28: =CONCATENATE('itens projetos'!A18,".",'itens projetos'!B18) -> 9.Revisão de Texto | D28: 4
A29: =CONCATENATE('itens projetos'!A19,".",'itens projetos'!B19) -> 10.Tradução | D29: 2
A30: =CONCATENATE('itens projetos'!A20,".",'itens projetos'!B20) -> 11.Advogado | D30: 2
A31: =CONCATENATE('itens projetos'!A21,".",'itens projetos'!B21) -> 12.Contador | D31: 1
A32: =CONCATENATE('itens projetos'!A22,".",'itens projetos'!B22) -> 17.Curador | D32: 2
A33: =CONCATENATE('itens projetos'!A23,".",'itens projetos'!B23) -> 18.Adesivos | D33: 2
A34: =CONCATENATE('itens projetos'!A24,".",'itens projetos'!B24) -> 19.Cenografia/material/confecção | D34: 10
A35: =CONCATENATE('itens projetos'!A25,".",'itens projetos'!B25) -> 20.Coordenação geral | D35: 24
A36: =CONCATENATE('itens projetos'!A26,".",'itens projetos'!B26) -> 21.Embalagem e acondicionamento para a exposição | D36: 12
A37: =CONCATENATE('itens projetos'!A27,".",'itens projetos'!B27) -> 22.Impressão em braile | D37: 1
A38: =CONCATENATE('itens projetos'!A28,".",'itens projetos'!B28) -> 23.Intérprete de libras | D38: 10
A39: =CONCATENATE('itens projetos'!A29,".",'itens projetos'!B29) -> 24.Locação de Equipamento de projeção | D39: 10
A40: =CONCATENATE('itens projetos'!A30,".",'itens projetos'!B30) -> 25.Locação de Espaço para Exposição | D40: 1
A41: =CONCATENATE('itens projetos'!A31,".",'itens projetos'!B31) -> 26.Locação de Mobiliário | D41: 1
A42: =CONCATENATE('itens projetos'!A32,".",'itens projetos'!B32) -> 27.Montagem e desmontagem | D42: 1
A46: LOCAL - DATA : SÃO PAULO, ________/________/________ | D46: NOME E ASSINATURA DO RESPONSÁVEL: WOLF VEL KOS TRAMBUCH

Sheet ANEXO V
G2: PARCIAL ( )
D3: RELATÓRIO DE BENS DE CAPITAL
D4: ANEXO V | G4: FINAL ( X )
A5: PRONAC - INCENTIVO | D5: (Se não houve aquisição, registrar “Nada Consta”)
A8: 1 – NOME DO PROJETO: MARYSIA PORTINARI - UNIVER SO PRÉ-EXISTENTE | G8: N.º PRONAC: 182445
A9: 3 – PROPONENTE: INSTITUTO OLGA KOS DE INCLUSÃO CULTURAL
A11: TIPO E NUMERO DO DOC FISCAL | B11: DATA | C11: ESPECIFICAÇÃO | E11: QUANTIDADE | F11: VALOR UNITÁRIO | H11: VALOR TOTAL
A29: nada consta | B29: nada consta | C29: nada consta | E29: nada consta | F29: nada consta | H29: nada consta
A54: TOTAL :
A55: LOCAL - DATA : SÃO PAULO, | E55: - NOME E ASSINATURA DO RESPONSÁVEL: WOLF VEL KOS TRAMBUCH

Sheet ANEXO VI
H2: PARCIAL ( )
C4: RELATÓRIO DE BENS IMÓVEIS
C5: ANEXO VI | H5: FINAL ( X )
C6: (Se não houve aquisição, registrar “Nada Consta”)
A8: NOME DO PROJETO: MARYSIA PORTINARI - UNIVER SO PRÉ-EXISTENTE | H8: N.º PRONAC: 182445
A9: PROPONENTE: INSTITUTO OLGA KOS DE INCLUSÃO CULTURAL
F10: CARTÓRIO DE REGISTRO | G10: NÚMERO REGISTRO
A11: ITEM | B11: ESPECIFICAÇÃO | E11: SITUAÇÃO | I11: VALOR R$
A26: NADA CONSTA | B26: NADA CONSTA | E26: NADA CONSTA | F26: NADA CONSTA | G26: NADA CONSTA | I26: NADA CONSTA
A36: TOTAL ............
A38: LOCAL - DATA : SÃO PAULO, | D38: - NOME E ASSINATURA DO RESPONSÁVEL: Wolf Vel Kos Trambuch

Sheet ANEXO VII
C2: CONCILIAÇÃO BANCÁRIA | E2: PARCIAL ( )
C3: ANEXO VII | E3: FINAL ( X )
A5: NOME DO PROJETO: MARYSIA PORTINARI - UNIVER SO PRÉ-EXISTENTE | E5: PRONAC N°: 182445
A6: PROPONENTE: INSTITUTO OLGA KOS DE INCLUSÃO CULTURAL
A7: BANCO: Banco do Brasil | B7: AGÊNCIA: 6998-1 | C7: CONTA CAPTAÇÃO: | D7: CONTA MOVIMENTO:
A9: ITEM | E9: VALOR (R$)
A10: TOTAL CAPTADO | E10: =SUM('ANEXO II '!C10:C34) -> 0
A11: TOTAL DE RENDIMENTOS DE APLICAÇÃO FINANCEIRAS | E11: =+'ANEXO II '!C34 -> 0
A12: TOTAL DE DESPESAS | E12: =+'ANEXO II '!F47 -> 166460
A13: TOTAL RECOLHIDO AO FNC | E13: =+E10-E12 -> -166460
A14: SALDO ATUAL | E14: 0
A16: LOCAL - DATA : SÃO PAULO, 31 de janeiro de 2017 | C16: NOME E ASSINATURA DO RESPONSÁVEL: WOLF VEL KOS TRAMBUCH
A18: Obs.: A este formulario dever ser anexados os extratos bancarios de todos os meses do prazo do projeto de de aplicações financeiras em ordem cronologica

Sheet APLICAÇÕES
A1: conta bloqueio | E1: conta movimento
A2: composição aplicação conta bloqueio | E2: composição aplicação conta movimento | I2: TARIFAS
A3: data | B3: valor | E3: data | F3: VALOR
A4: dezembro 2017 | B4: 0 | E4: JANEIRO/2019 | F4: 52.77
A5: janeiro 2018 | B5: 0 | E5: FEVEREIRO/2019
E6: MARÇO/2019
E7: ABRIL/2019
E8: MAIO/2019
E9: JUNHO/2019
E10: JULHO/2019
E11: AGOSTO/2019
E12: SETEMBRO/2019
E13: OUTUBRO/2019
E14: NOVEMBRO /2019
E15: DEZEMBRO/2019
B19: =SUM(B6:B13) -> 0 | E19: TOTAL: | F19: =SUM(F4:F15) -> 52.77
B23: =+B21-B19 -> 0
E24: BRUTO
E47: SAIDA INDEVIDA - VALOR RESTITUIDO - CONTRAPARTIDA
E48: SAIDA INDEVIDA - VALOR RESTITUIDO - CONTRAPARTIDA
E49: SAIDA INDEVIDA - VALOR RESTITUIDO - CONTRAPARTIDA
E51: SAIDA INDEVIDA - VALOR RESTITUIDO - CONTRAPARTIDA
E55: SAIDA INDEVIDA - VALOR RESTITUIDO - CONTRAPARTIDA
E61: SAIDA INDEVIDA - VALOR RESTITUIDO - CONTRAPARTIDA
E83: SAIDA INDEVIDA - VALOR RESTITUIDO - CONTRAPARTIDA
H89: 850284
H90: 2014-04-17
E101: SAIDA INDEVIDA - VALOR RESTITUIDO - CONTRAPARTIDA
E102: SAIDA INDEVIDA - VALOR RESTITUIDO - CONTRAPARTIDA

Sheet deposito
B3: DEPOSITO | I3: ESTORNOS OU DEVOLUÇÕES
A5: Data | B5: Histórico | C5: valor | H5: Data | I5: Histórico | J5: valor | L5: CANCELADOS
L6: 850096
L7: 850104
C42: =SUM(C6:C37) -> 0 | J42: =SUM(J6:J21) -> 0 | L42: =+J42+C42 -> 0
H69: 850284
H70: 2014-04-17

Sheet projeto
B1: ITEM | C1: DIAS | D1: QTDE | E1: OCOR. | F1: VL. UNITÁRIO | G1: VL. SOLICITADO | H1: JUSTIF. DO PROPONENTE
A2: 13 | B2: Coordenação artistica | C2: 120 | D2: 2 | E2: 4 | F2: 3000 | G2: 24000
A3: 14 | B3: Aluguel de ônibus | C3: 1 | D3: 4 | E3: 1 | F3: 900 | G3: 3600
A4: 15 | B4: Arte educador | C4: 120 | D4: 8 | E4: 4 | F4: 2400 | G4: 76800
A5: 16 | B5: Impressão | C5: 120 | D5: 2000 | E5: 1 | F5: 4.5 | G5: 9000
A6: 17 | B6: Material de apoio pedagógico | C6: 120 | D6: 1 | E6: 3 | F6: 4000 | G6: 12000
A7: 1 | B7: Produção de Texto | C7: 90 | D7: 1 | E7: 4 | F7: 5000 | G7: 20000
A8: 2 | B8: Coordenação Gráfica | C8: 120 | D8: 1 | E8: 2 | F8: 2610 | G8: 5220
A9: 3 | B9: Custo distribuição para bibliotecas | C9: 120 | D9: 1 | E9: 1 | F9: 2000 | G9: 2000
A10: 4 | B10: Designer | C10: 120 | D10: 1 | E10: 3 | F10: 4000 | G10: 12000
A11: 5 | B11: Ficha Catalográfica e ISBN | C11: 120 | D11: 1 | E11: 1 | F11: 150 | G11: 150
A12: 6 | B12: Fotografia Artística (Fotógrafo, Tratamento, Revelação, etc.) | C12: 120 | D12: 1 | E12: 1 | F12: 20000 | G12: 20000
A13: 7 | B13: Gravação de vozes | C13: 120 | D13: 1 | E13: 1 | F13: 6000 | G13: 6000
A14: 8 | B14: Impressão | C14: 120 | D14: 3000 | E14: 1 | F14: 46 | G14: 138000
A15: 9 | B15: Revisão de Texto | C15: 120 | D15: 90 | E15: 1 | F15: 36 | G15: 3240
A16: 10 | B16: Tradução | C16: 120 | D16: 1 | E16: 1 | F16: 4000 | G16: 4000
A17: 11 | B17: Advogado | C17: 270 | D17: 1 | E17: 9 | F17: 1000 | G17: 9000
A18: 12 | B18: Contador | C18: 270 | D18: 1 | E18: 9 | F18: 954 | G18: 8586
A19: 17 | B19: Curador | C19: 90 | D19: 1 | E19: 1 | F19: 15000 | G19: 15000
A20: 18 | B20: Adesivos | C20: 120 | D20: 1 | E20: 1 | F20: 2200 | G20: 2200
A21: 19 | B21: Cenografia/material/confecção | C21: 120 | D21: 1 | E21: 1 | F21: 4500 | G21: 4500
A22: 20 | B22: Coordenação geral | C22: 270 | D22: 1 | E22: 9 | F22: 5750 | G22: 51750
A23: 21 | B23: Embalagem e acondicionamento para a exposição | C23: 120 | D23: 1 | E23: 2 | F23: 1100 | G23: 2200
A24: 22 | B24: Impressão em braile | C24: 120 | D24: 1 | E24: 1 | F24: 9000 | G24: 9000
A25: 23 | B25: Intérprete de libras | C25: 120 | D25: 2 | E25: 1 | F25: 1600 | G25: 3200
A26: 24 | B26: Locação de Equipamento de projeção | C26: 120 | D26: 1 | E26: 1 | F26: 3000 | G26: 3000
A27: 25 | B27: Locação de Espaço para Exposição | C27: 120 | D27: 1 | E27: 1 | F27: 5000 | G27: 5000
A28: 26 | B28: Locação de Mobiliário | C28: 120 | D28: 1 | E28: 1 | F28: 2500 | G28: 2500
A29: 27 | B29: Montagem e desmontagem | C29: 120 | D29: 1 | E29: 1 | F29: 2500 | G29: 2500
A30: 28 | B30: Projeto cenográfico | C30: 120 | D30: 1 | E30: 1 | F30: 6000 | G30: 6000
A31: 29 | B31: Transporte de material | C31: 120 | D31: 1 | E31: 2 | F31: 1200 | G31: 2400
A32: 30 | B32: Remuneração para captação de recursos | C32: 1 | D32: 1 | E32: 1 | F32: 60110.1 | G32: 60110.1
A33: 31 | B33: Custos de Administração | C33: 1 | D33: 1 | E33: 1 | F33: 66789 | G33: 66789
A34: 32 | B34: Custos de Divulgação | C34: 1 | D34: 1 | E34: 1 | F34: 89052 | G34: 89052
A35: Custo Total (Custo do Projeto + Valores de Outras Leis + Valores de Outras Fontes) | G35: =SUM(G2:G34) -> 678797.1

Sheet itens projetos
A1: PLANILHA ORÇAMENTARIA X GASTOS EFETIVADOS
A2: MARYSIA PORTINARI - UNIVER SO PRÉ-EXISTENTE - PRONAC: 182445
B3: conta:
A4: ITEM | B4: AÇÃO | C4: contabil | D4: DIAS | E4: UNIDADE | F4: QTD | G4: Duração | H4: VALOR UNITARIO | I4: TOTAL ITEM | J4: EXECUTADO | K4: DISPONIVEL | L4: EXCEDIDOS | M4: ITEM
A5: 13 | B5: Coordenação artistica | C5: 11160 | D5: 120 | E5: Mês | F5: 2 | G5: 4 | H5: 3000 | I5: 24000 | J5: =+'1.1'!B10 -> 0 | K5: =IF(+I5-J5<0,0,I5-J5) -> 24000 | L5: =IF(+I5-J5<0,J5-I5," ") ->  | N5: 13
A6: 14 | B6: Aluguel de ônibus | C6: 11161 | D6: 1 | E6: Mês | F6: 4 | G6: 1 | H6: 900 | I6: 3600 | J6: =+'1.2'!B10 -> 0 | K6: =IF(+I6-J6<0,0,I6-J6) -> 3600 | L6: =IF(+I6-J6<0,J6-I6," ") ->  | N6: 14
A7: 15 | B7: Arte educador | C7: 11162 | D7: 120 | E7: Verba | F7: 8 | G7: 4 | H7: 2400 | I7: 76800 | J7: =+'1.3'!B15 -> 0 | K7: 76800 | L7: =IF(+I7-J7<0,J7-I7," ") ->  | N7: 15
A8: 16 | B8: Impressão | C8: 11163 | D8: 120 | E8: Serviço | F8: 2000 | G8: 1 | H8: 4.5 | I8: 9000 | J8: =+'2.1'!B16 -> 0 | K8: 9000 | N8: 16
A9: 17 | B9: Material de apoio pedagógico | C9: 11164 | D9: 120 | E9: Mês | F9: 1 | G9: 3 | H9: 4000 | I9: 12000 | J9: =+'2.2'!B16 -> 0 | K9: 12000 | N9: 17
A10: 1 | B10: Produção de Texto | C10: 11165 | D10: 90 | E10: Serviço | F10: 1 | G10: 4 | H10: 5000 | I10: 20000 | J10: =+'2.3'!B15 -> 20000 | K10: 0 | N10: 1
A11: 2 | B11: Coordenação Gráfica | C11: 11166 | D11: 120 | E11: Serviço | F11: 1 | G11: 2 | H11: 2610 | I11: 5220 | J11: =+'2.4'!B15 -> 5220 | K11: 0 | N11: 2
A12: 3 | B12: Custo distribuição para bibliotecas | C12: 11167 | D12: 120 | E12: Mês | F12: 1 | G12: 1 | H12: 2000 | I12: 2000 | J12: =+'2.5'!B15 -> 0 | K12: 2000 | N12: 3
A13: 4 | B13: Designer | C13: 11168 | D13: 120 | E13: Serviço | F13: 1 | G13: 3 | H13: 4000 | I13: 12000 | J13: =+'3.1'!B15 -> 0 | K13: 12000 | N13: 4
A14: 5 | B14: Ficha Catalográfica e ISBN | C14: 11169 | D14: 120 | E14: Verba | F14: 1 | G14: 1 | H14: 150 | I14: 150 | J14: =+'3.2'!B7 -> 0 | K14: 150 | N14: 5
A15: 6 | B15: Fotografia Artística (Fotógrafo, Tratamento, Revelação, etc.) | C15: 11170 | D15: 120 | E15: Serviço | F15: 1 | G15: 1 | H15: 20000 | I15: 20000 | J15: =+'3.3'!B8 -> 0 | K15: 20000 | N15: 6
A16: 7 | B16: Gravação de vozes | C16: 11171 | D16: 120 | E16: Serviço | F16: 1 | G16: 1 | H16: 6000 | I16: 6000 | J16: =+'3.4'!B16 -> 0 | K16: 6000 | N16: 7
A17: 8 | B17: Impressão | C17: 11172 | D17: 120 | E17: UNIDADE | F17: 3000 | G17: 1 | H17: 46 | I17: 138000 | J17: =+'3.5'!B8 -> 138000 | K17: 0 | N17: 8
A18: 9 | B18: Revisão de Texto | C18: 11173 | D18: 120 | E18: Serviço | F18: 90 | G18: 1 | H18: 36 | I18: 3240 | J18: =+'3.6'!B7 -> 3240 | K18: 0 | N18: 9
A19: 10 | B19: Tradução | C19: 11174 | D19: 120 | E19: Serviço | F19: 1 | G19: 1 | H19: 4000 | I19: 4000 | J19: =+'3.7'!B7 -> 0 | K19: 4000 | N19: 10
A20: 11 | B20: Advogado | C20: 11175 | D20: 270 | E20: Serviço | F20: 1 | G20: 9 | H20: 1000 | I20: 9000 | J20: =+'3.8'!B7 -> 0 | K20: 9000 | N20: 11
A21: 12 | B21: Contador | C21: 11176 | D21: 270 | E21: Serviço | F21: 1 | G21: 9 | H21: 954 | I21: 8586 | J21: =+'3.9'!B7 -> 0 | K21: 8586 | N21: 12
A22: 17 | B22: Curador | C22: 11177 | D22: 90 | E22: Serviço | F22: 1 | G22: 1 | H22: 15000 | I22: 15000 | J22: =+'3.10'!B7 -> 0 | K22: 15000 | N22: 17
A23: 18 | B23: Adesivos | C23: 11178 | D23: 120 | E23: Serviço | F23: 1 | G23: 1 | H23: 2200 | I23: 2200 | J23: =+'3.11'!B15 -> 0 | K23: 2200 | N23: 18
A24: 19 | B24: Cenografia/material/confecção | C24: 11179 | D24: 120 | E24: Serviço | F24: 1 | G24: 1 | H24: 4500 | I24: 4500 | J24: =+'3.12'!B7 -> 0 | K24: 4500 | N24: 19
A25: 20 | B25: Coordenação geral | C25: 11180 | D25: 270 | F25: 1 | G25: 9 | H25: 5750 | I25: 51750 | J25: =+'3.13'!B16 -> 0 | K25: 51750 | N25: 20
A26: 21 | B26: Embalagem e acondicionamento para a exposição | C26: 11181 | D26: 120 | E26: Serviço | F26: 1 | G26: 2 | H26: 1100 | I26: 2200 | J26: =+'4.1'!B11 -> 0 | K26: 2200 | N26: 21
A27: 22 | B27: Impressão em braile | C27: 11182 | D27: 120 | E27: Serviço | F27: 1 | G27: 1 | H27: 9000 | I27: 9000 | J27: =+'4.2'!B7 -> 0 | K27: 9000 | N27: 22
A28: 23 | B28: Intérprete de libras | C28: 11183 | D28: 120 | E28: Serviço | F28: 2 | G28: 1 | H28: 1600 | I28: 3200 | J28: =+'4.3'!B3 -> 0 | K28: 3200 | N28: 23
A29: 24 | B29: Locação de Equipamento de projeção | C29: 11184 | D29: 120 | E29: Serviço | F29: 1 | G29: 1 | H29: 3000 | I29: 3000 | J29: =+'4.10'!B20 -> 0 | K29: =IF(+I29-J29<0,0,I29-J29) -> 3000 | N29: 24
A30: 25 | B30: Locação de Espaço para Exposição | C30: 11185 | D30: 120 | E30: Serviço | F30: 1 | G30: 1 | H30: 5000 | I30: 5000 | J30: =+'5.1'!B7 -> 0 | K30: 5000 | N30: 25
A31: 26 | B31: Locação de Mobiliário | C31: 11186 | D31: 120 | E31: Serviço | F31: 1 | G31: 1 | H31: 2500 | I31: 2500 | J31: =+'6.2'!B7 -> 0 | K31: 2500 | N31: 26
A32: 27 | B32: Montagem e desmontagem | C32: 11187 | D32: 120 | E32: Serviço | F32: 1 | G32: 1 | H32: 2500 | I32: 2500 | J32: =+'6.3'!B7 -> 0 | K32: 2500 | N32: 27
A33: 28 | B33: Projeto cenográfico | C33: 11188 | D33: 120 | E33: Serviço | F33: 1 | G33: 1 | H33: 6000 | I33: 6000 | J33: =+'6.4'!B7 -> 0 | K33: =IF(+I33-J33<0,0,I33-J33) -> 6000 | L33: =IF(+I33-J33<0,J33-I33," ") ->  | N33: 28
A34: 29 | B34: Transporte de material | C34: 11189 | D34: 120 | E34: Serviço | F34: 1 | G34: 2 | H34: 1200 | I34: 2400 | J34: =+'6.5'!B7 -> 0 | K34: 2400 | N34: 29
A35: 30 | B35: Remuneração para captação de recursos | C35: 11190 | D35: 1 | F35: 1 | G35: 1 | H35: 60110.1 | I35: 60110.1 | J35: =+'6.6'!B7 -> 60110.1 | K35: 0 | N35: 30
A36: 31 | B36: Custos de Administração | C36: 11191 | D36: 1 | F36: 1 | G36: 1 | H36: 66789 | I36: 66789 | J36: =+'6.7'!$B65 -> 2914.2 | K36: 63874.8 | N36: 31
A37: 32 | B37: Custos de Divulgação | C37: 11192 | D37: 1 | F37: 1 | G37: 1 | H37: 89052 | I37: 89052 | J37: =+'6.8'!B47 -> 2000 | K37: 87052 | N37: 32
H41: TOTAL PROJETOS | I41: =SUM(I5:I40) -> 678797.1 | J41: =SUM(J5:J40) -> 231484.3 | K41: =SUM(K5:K40) -> 447312.8 | L41: =SUM(L5:L40) -> 0
H42: 850001 | I42: 15/01/2019 | J42: 195000
H43: 850002 | I43: 16/01/2019 | J43: 19000
H44: 850003 | I44: 17/01/2019 | J44: 51000
B45: TOTAL DO PROJETO CAPTADO | E45: 678797.1 | H45: 850004 | I45: 21/01/2019 | J45: 20000
B46: PARCELA LIBERADA | E46: 678797.1 | H46: 850006 | I46: 22/01/2019 | J46: 67000
B47: RENDIMENTOS CONTA BLOQUEIO | H47: 850008 | I47: 24/01/2019 | J47: 73000 | K47: SALDO DISPONIVEL | L47: =+K41-L41 -> 447312.8
B48: RENDIMENTOS CONTA MOVIMENTO | E48: =+APLICAÇÕES!F19 -> 52.77 | H48: 850009 | I48: 29/01/2019 | J48: 51000
B49: Recurso total para o projeto | E49: =SUM(E46:E48) -> 678849.87
B50: Valores depositados | E50: =+deposito!C42 -> 0 | F50: =+E50-SUM(J42:J53) -> -476000
B51: DEPOSITOS DE ESTORNOS | E51: =+deposito!J42 -> 0
B52: Total creditado conta projeto | E52: =SUM(E49:E51) -> 678849.87
B53: cheques emitidos | E53: =+J61 -> -707484.3
B54: IMPOSTO A RECOLHER
B55: TARIFAS
B57: SALDO PLANILHA | E57: =+E52+E53+E54-E55 -> -28634.43
B58: SALDO APLICAÇÃO | E58: 0
B59: SALDO CONTA | E59: 28634.43
B60: DIFERENÇA | E60: =SUM(E57:E59) -> -5.09317033e-11
H61: TOTAL CHEQUES EMITIDOS | J61: =SUM(J41:J60)*-1 -> -707484.3
F62: OFICIOS A DEVOLVER | G62: =+F50*-1 -> 476000
F63: SALDO EM CONTA | G63: =+E57 -> -28634.43
F64: SALDO REAL | G64: =SUM(G62:G63) -> 447365.57
B75: observações: | F75: FINANCEIRO
J79: .
G80: =+G64-G72 -> 447365.57 | K80: EDSON PEREIRA
G81: =+G80+G67 -> 447365.57

Sheet 1.1
A1: =+'itens projetos'!B5 -> Coordenação artistica | I1: ='itens projetos'!C5 -> 11160
A2: VERBA | B2: VR. NOTA | C2: N º CHEQUE | D2: DATA DA SAÍDA | E2: DESCRIÇÃO DA SAÍDA | F2: NF | G2: DATA DA NOTA | H2: QTDADE
A3: =+'itens projetos'!I5 -> 24000
A10: =SUM(A3:A9) -> 24000 | B10: =SUM(B3:B9) -> 0
A11: SALDO | B11: =+A3-B10 -> 24000
A15: COTAÇÃO DE MATERIAIS E SERVIÇOS
G18: 1 - Fornecedor | I18: 2 - Fornecedor | K18: 3 - Fornecedor
A19: =+'itens projetos'!A2:M2 -> MARYSIA PORTINARI - UNIVER SO PRÉ-EXISTENTE - PRONAC: 182445 | G19: COR E TAL | I19: PEOPLE | K19: BNER
G20: CNPJ: 10.875.118/0001-17 | I20: CNPJ: 13.933.022/0001-56 | K20: CNPJ: 82.344.425/0001-82
A21: QTDE | B21: UNI | C21: COD | D21: DESCRIÇÃO DO MATERIAL | G21: V. UNI | H21: V. TOTAL | I21: V. UNI | J21: V. TOTAL | K21: V. UNI | L21: V. TOTAL
C22: 0 | G22: 3000 | H22: =A22*G22 -> 0 | I22: 3200 | J22: =A22*I22 -> 0 | K22: 3500 | L22: =A22*K22 -> 0
G23: 185 | H23: =A23*G23 -> 0 | I23: 190 | J23: =I23*A23 -> 0 | K23: 195 | L23: =K23*A23 -> 0
H24: 0 | J24: 0 | L24: 0
H25: 0 | J25: 0 | L25: 0
H26: 0 | J26: 0 | L26: 0
H27: 0 | J27: 0 | L27: 0
H28: 0 | J28: 0 | L28: 0
H29: 0 | J29: 0 | L29: 0
H30: 0 | J30: 0 | L30: 0
H31: 0 | J31: 0 | L31: 0
H32: 0 | J32: 0 | L32: 0
H33: 0 | J33: 0 | L33: 0
H34: 0 | J34: 0 | L34: 0
H35: 0 | J35: 0 | L35: 0
H36: 0 | J36: 0 | L36: 0
H37: 0 | J37: 0 | L37: 0
H38: 0 | J38: 0 | L38: 0
H39: 0 | J39: 0 | L39: 0
H40: 0 | J40: 0 | L40: 0
H41: 0 | J41: 0 | L41: 0
H42: 0 | J42: 0 | L42: 0
H43: 0 | J43: 0 | L43: 0
H44: 0 | J44: 0 | L44: 0
H45: 0 | J45: 0 | L45: 0
H46: 0 | J46: 0 | L46: 0
H47: 0 | J47: 0 | L47: 0
H48: 0 | J48: 0 | L48: 0
H49: 0 | J49: 0 | L49: 0
H50: 0 | J50: 0 | L50: 0
H51: 0 | J51: 0 | L51: 0
H52: 0 | J52: 0 | L52: 0
H53: 0 | J53: 0 | L53: 0
A54: OBS:. | F54: TOTAIS | G54: =SUM(H22:H53) -> 0 | I54: =SUM(J22:J53) -> 0 | K54: =SUM(L22:L53) -> 0
A56: DATA | G56: APROVADO
A57: 2018-01-30

Sheet 1.2
A1: =+'itens projetos'!B6 -> Aluguel de ônibus | I1: ='itens projetos'!C6 -> 11161
A2: VERBA | B2: VR. NOTA | C2: N º CHEQUE | D2: DATA DA SAÍDA | E2: DESCRIÇÃO DA SAÍDA | F2: NF | G2: DATA DA NOTA | H2: QTDADE
A3: =+'itens projetos'!I6 -> 3600
A10: =SUM(A3:A9) -> 3600 | B10: =SUM(B3:B9) -> 0
A11: SALDO | B11: =+A3-B10 -> 3600
A17: COTAÇÃO DE MATERIAIS E SERVIÇOS
G20: 1 - Fornecedor | I20: 2 - Fornecedor | K20: 3 - Fornecedor
A21: =+'itens projetos'!A2:M2 -> MARYSIA PORTINARI - UNIVER SO PRÉ-EXISTENTE - PRONAC: 182445
A23: QTDE | B23: UNI | C23: COD | D23: DESCRIÇÃO DO MATERIAL | G23: V. UNI | H23: V. TOTAL | I23: V. UNI | J23: V. TOTAL | K23: V. UNI | L23: V. TOTAL
H25: =A25*G25 -> 0 | J25: =I25*A25 -> 0 | L25: =K25*A25 -> 0
H26: 0 | J26: 0 | L26: 0
H27: 0 | J27: 0 | L27: 0
H28: 0 | J28: 0 | L28: 0
H29: 0 | J29: 0 | L29: 0
H30: 0 | J30: 0 | L30: 0
H31: 0 | J31: 0 | L31: 0
H32: 0 | J32: 0 | L32: 0
H33: 0 | J33: 0 | L33: 0
H34: 0 | J34: 0 | L34: 0
H35: 0 | J35: 0 | L35: 0
H36: 0 | J36: 0 | L36: 0
H37: 0 | J37: 0 | L37: 0
H38: 0 | J38: 0 | L38: 0
H39: 0 | J39: 0 | L39: 0
H40: 0 | J40: 0 | L40: 0
H41: 0 | J41: 0 | L41: 0
H42: 0 | J42: 0 | L42: 0
H43: 0 | J43: 0 | L43: 0
H44: 0 | J44: 0 | L44: 0
H45: 0 | J45: 0 | L45: 0
H46: 0 | J46: 0 | L46: 0
H47: 0 | J47: 0 | L47: 0
H48: 0 | J48: 0 | L48: 0
H49: 0 | J49: 0 | L49: 0
H50: 0 | J50: 0 | L50: 0
H51: 0 | J51: 0 | L51: 0
H52: 0 | J52: 0 | L52: 0
H53: 0 | J53: 0 | L53: 0
H54: 0 | J54: 0 | L54: 0
H55: 0 | J55: 0 | L55: 0
A56: OBS:. | F56: TOTAIS | G56: =SUM(H24:H55) -> 0 | I56: =SUM(J24:J55) -> 0 | K56: =SUM(L24:L55) -> 0
A58: DATA | G58: APROVADO
A59: 2017-07-08

Sheet 1.3
A1: =+'itens projetos'!B7 -> Arte educador | I1: ='itens projetos'!C7 -> 11162
A2: VERBA | B2: VR. NOTA | C2: N º CHEQUE | D2: DATA DA SAÍDA | E2: DESCRIÇÃO DA SAÍDA | F2: NF | G2: DATA DA NOTA | H2: QTDADE
A3: =+'itens projetos'!I7 -> 76800
A15: =SUM(A3:A5) -> 76800 | B15: =SUM(B3:B14) -> 0
A16: SALDO | B16: =A15-B15 -> 76800
A19: 4800 MENSAL
A20: COTAÇÃO DE MATERIAIS E SERVIÇOS
G23: 1 - Fornecedor | I23: 2 - Fornecedor | K23: 3 - Fornecedor
A24: =+'itens projetos'!A2:M2 -> MARYSIA PORTINARI - UNIVER SO PRÉ-EXISTENTE - PRONAC: 182445 | G24: COR E TAL | I24: KLINTOWITZ | K24: LUCKY
G25: CNPJ: 10.875.118/0001-17 | I25: CNPJ: 08.977.656/0001-70 | K25: CNPJ: 00.265.815/0001-00
A26: QTDE | B26: UNI | C26: COD | D26: DESCRIÇÃO DO MATERIAL | G26: V. UNI | H26: V. TOTAL | I26: V. UNI | J26: V. TOTAL | K26: V. UNI | L26: V. TOTAL
A27: 1 | B27: SERVIÇO | C27: 3 | D27: Coordenação Editorial | G27: 15000 | H27: =A27*G27 -> 15000 | I27: 16000 | J27: =I27*A27 -> 16000 | K27: 17000 | L27: =K27*A27 -> 17000
A28: 1 | B28: SERVIÇO | C28: 12 | D28: Tradução | G28: 3500 | H28: =A28*G28 -> 3500 | I28: 4000 | J28: =I28*A28 -> 4000 | K28: 4200 | L28: =K28*A28 -> 4200
H29: 0 | J29: 0 | L29: 0
H30: 0 | J30: 0 | L30: 0
H31: 0 | J31: 0 | L31: 0
H32: 0 | J32: 0 | L32: 0
H33: 0 | J33: 0 | L33: 0
H34: 0 | J34: 0 | L34: 0
H35: 0 | J35: 0 | L35: 0
H36: 0 | J36: 0 | L36: 0
H37: 0 | J37: 0 | L37: 0
H38: 0 | J38: 0 | L38: 0
H39: 0 | J39: 0 | L39: 0
H40: 0 | J40: 0 | L40: 0
H41: 0 | J41: 0 | L41: 0
H42: 0 | J42: 0 | L42: 0
H43: 0 | J43: 0 | L43: 0
H44: 0 | J44: 0 | L44: 0
H45: 0 | J45: 0 | L45: 0
H46: 0 | J46: 0 | L46: 0
H47: 0 | J47: 0 | L47: 0
H48: 0 | J48: 0 | L48: 0
H49: 0 | J49: 0 | L49: 0
H50: 0 | J50: 0 | L50: 0
H51: 0 | J51: 0 | L51: 0
H52: 0 | J52: 0 | L52: 0
H53: 0 | J53: 0 | L53: 0
H54: 0 | J54: 0 | L54: 0
H55: 0 | J55: 0 | L55: 0
H56: 0 | J56: 0 | L56: 0
H57: 0 | J57: 0 | L57: 0
H58: 0 | J58: 0 | L58: 0
A59: OBS:. | F59: TOTAIS | G59: =SUM(H27:H58) -> 18500 | I59: =SUM(J27:J58) -> 20000 | K59: =SUM(L27:L58) -> 21200
A61: DATA | G61: APROVADO
A62: 2017-07-08

Sheet 2.1
A1: =+'itens projetos'!B8 -> Impressão | I1: ='itens projetos'!C8 -> 11163
A2: VERBA | B2: VR. NOTA | C2: N º CHEQUE | D2: DATA DA SAÍDA | E2: DESCRIÇÃO DA SAÍDA | F2: NF | G2: DATA DA NOTA | H2: QTDADE
A3: =+'itens projetos'!I8 -> 9000
A16: =SUM(A3:A15) -> 9000 | B16: =SUM(B3:B15) -> 0
A17: SALDO | B17: =A16-B16 -> 9000
A20: COTAÇÃO DE MATERIAIS E SERVIÇOS
G23: 1 - Fornecedor | I23: 2 - Fornecedor | K23: 3 - Fornecedor
A24: =+'itens projetos'!A2:M2 -> MARYSIA PORTINARI - UNIVER SO PRÉ-EXISTENTE - PRONAC: 182445 | G24: JAIRO | I24: EBRS | K24: UPRISEPRINT
G25: CNPJ: 09.649.886/0001-73 | I25: CNPJ: 09.120.592/0001-50 | K25: CNPJ: 16.887.262/0001-50
A26: QTDE | B26: UNI | C26: COD | D26: DESCRIÇÃO DO MATERIAL | G26: V. UNI | H26: V. TOTAL | I26: V. UNI | J26: V. TOTAL | K26: V. UNI | L26: V. TOTAL
H28: =A28*G28 -> 0 | J28: =I28*A28 -> 0 | L28: =K28*A28 -> 0
H29: 0 | J29: 0 | L29: 0
H30: 0 | J30: 0 | L30: 0
H31: 0 | J31: 0 | L31: 0
H32: 0 | J32: 0 | L32: 0
H33: 0 | J33: 0 | L33: 0
H34: 0 | J34: 0 | L34: 0
H35: 0 | J35: 0 | L35: 0
H36: 0 | J36: 0 | L36: 0
H37: 0 | J37: 0 | L37: 0
H38: 0 | J38: 0 | L38: 0
H39: 0 | J39: 0 | L39: 0
H40: 0 | J40: 0 | L40: 0
H41: 0 | J41: 0 | L41: 0
H42: 0 | J42: 0 | L42: 0
H43: 0 | J43: 0 | L43: 0
H44: 0 | J44: 0 | L44: 0
H45: 0 | J45: 0 | L45: 0
H46: 0 | J46: 0 | L46: 0
H47: 0 | J47: 0 | L47: 0
H48: 0 | J48: 0 | L48: 0
H49: 0 | J49: 0 | L49: 0
H50: 0 | J50: 0 | L50: 0
H51: 0 | J51: 0 | L51: 0
H52: 0 | J52: 0 | L52: 0
H53: 0 | J53: 0 | L53: 0
H54: 0 | J54: 0 | L54: 0
H55: 0 | J55: 0 | L55: 0
H56: 0 | J56: 0 | L56: 0
H57: 0 | J57: 0 | L57: 0
H58: 0 | J58: 0 | L58: 0
A59: OBS:. | F59: TOTAIS | G59: =SUM(H27:H58) -> 0 | I59: =SUM(J27:J58) -> 0 | K59: =SUM(L27:L58) -> 0
A61: DATA | G61: APROVADO
A62: 2017-07-08

Sheet 2.2
A1: =+'itens projetos'!B9 -> Material de apoio pedagógico | I1: ='itens projetos'!C9 -> 11164
A2: VERBA | B2: VR. NOTA | C2: N º CHEQUE | D2: DATA DA SAÍDA | E2: DESCRIÇÃO DA SAÍDA | F2: NF | G2: DATA DA NOTA | H2: QTDADE
A3: =+'itens projetos'!I9 -> 12000
A16: =SUM(A2:A15) -> 12000 | B16: =SUM(B3:B15) -> 0
A17: SALDO | B17: =A16-B16 -> 12000
A20: COTAÇÃO DE MATERIAIS E SERVIÇOS
G23: 1 - Fornecedor | I23: 2 - Fornecedor | K23: 3 - Fornecedor
A24: =+'itens projetos'!A2:M2 -> MARYSIA PORTINARI - UNIVER SO PRÉ-EXISTENTE - PRONAC: 182445 | G24: CAKI | I24: JAIRO | K24: UPRISEPRINT
G25: CNPJ: 17.852.557/0001-53 | I25: CNPJ: 09.649.886/0001-73 | K25: CNPJ: 16.887.262/0001-50
A26: QTDE | B26: UNI | C26: COD | D26: DESCRIÇÃO DO MATERIAL | G26: V. UNI | H26: V. TOTAL | I26: V. UNI | J26: V. TOTAL | K26: V. UNI | L26: V. TOTAL
A27: 1 | C27: 3 | D27: COORDENAÇÃO GRÁFICA | G27: 5000 | H27: =A27*G27 -> 5000 | I27: 5200 | J27: =I27*A27 -> 5200 | K27: 5600 | L27: =K27*A27 -> 5600
A28: 1 | C28: 5 | D28: DESIGNER | G28: 12000 | H28: =A28*G28 -> 12000 | I28: 14000 | J28: =I28*A28 -> 14000 | K28: 13000 | L28: =K28*A28 -> 13000
H29: 0 | J29: 0 | L29: 0
H30: 0 | J30: 0 | L30: 0
H31: 0 | J31: 0 | L31: 0
H32: 0 | J32: 0 | L32: 0
H33: 0 | J33: 0 | L33: 0
H34: 0 | J34: 0 | L34: 0
H35: 0 | J35: 0 | L35: 0
H36: 0 | J36: 0 | L36: 0
H37: 0 | J37: 0 | L37: 0
H38: 0 | J38: 0 | L38: 0
H39: 0 | J39: 0 | L39: 0
H40: 0 | J40: 0 | L40: 0
H41: 0 | J41: 0 | L41: 0
H42: 0 | J42: 0 | L42: 0
H43: 0 | J43: 0 | L43: 0
H44: 0 | J44: 0 | L44: 0
H45: 0 | J45: 0 | L45: 0
H46: 0 | J46: 0 | L46: 0
H47: 0 | J47: 0 | L47: 0
H48: 0 | J48: 0 | L48: 0
H49: 0 | J49: 0 | L49: 0
H50: 0 | J50: 0 | L50: 0
H51: 0 | J51: 0 | L51: 0
H52: 0 | J52: 0 | L52: 0
H53: 0 | J53: 0 | L53: 0
H54: 0 | J54: 0 | L54: 0
H55: 0 | J55: 0 | L55: 0
H56: 0 | J56: 0 | L56: 0
H57: 0 | J57: 0 | L57: 0
H58: 0 | J58: 0 | L58: 0
A59: OBS:. | F59: TOTAIS | G59: =SUM(H27:H58) -> 17000 | I59: =SUM(J27:J58) -> 19200 | K59: =SUM(L27:L58) -> 18600
A61: DATA | G61: APROVADO
A62: 2018-01-30

Sheet 2.3
A1: =+'itens projetos'!B10 -> Produção de Texto
A2: VERBA | B2: VR. NOTA | C2: N º CHEQUE | D2: DATA DA SAÍDA | E2: DESCRIÇÃO DA SAÍDA | F2: NF | G2: DATA DA NOTA | H2: QTDADE | I2: ='itens projetos'!C10 -> 11165
A3: =+'itens projetos'!I10 -> 20000 | B3: 20000 | C3: 850013 | D3: 2019-01-30 | E3: KLINTOWITZ COMUNICAÇÃO LTDA | F3: NF 0249 | G3: 2019-01-29 | H3: 1
A15: =SUM(A3:A12) -> 20000 | B15: =SUM(B3:B14) -> 20000
A16: SALDO | B16: =A15-B15 -> 0
A20: COTAÇÃO DE MATERIAIS E SERVIÇOS
G23: 1 - Fornecedor | I23: 2 - Fornecedor | K23: 3 - Fornecedor
A24: =+'itens projetos'!A2:M2 -> MARYSIA PORTINARI - UNIVER SO PRÉ-EXISTENTE - PRONAC: 182445 | G24: COR E TAL | I24: DEMOCRART | K24: KLINTOWITZ
G25: CNPJ : 10.875.118/0001-17 | I25: CNPJ : 11.068.000/0001-40 | K25: CNPJ : 08.977.656/0001-70
A26: QTDE | B26: UNI | C26: COD | D26: DESCRIÇÃO DO MATERIAL | G26: V. UNI | H26: V. TOTAL | I26: V. UNI | J26: V. TOTAL | K26: V. UNI | L26: V. TOTAL
A27: 1 | B27: SERVIÇO | C27: 6 | D27: Prestação de serviços com Direitos autorais | G27: 36000 | H27: =A27*G27 -> 36000 | I27: 36100 | J27: =I27*A27 -> 36100 | K27: 35232 | L27: =K27*A27 -> 35232
H28: =A28*G28 -> 0 | J28: =I28*A28 -> 0 | L28: =K28*A28 -> 0
H29: 0 | J29: 0 | L29: 0
H30: 0 | J30: 0 | L30: 0
H31: 0 | J31: 0 | L31: 0
H32: 0 | J32: 0 | L32: 0
H33: 0 | J33: 0 | L33: 0
H34: 0 | J34: 0 | L34: 0
H35: 0 | J35: 0 | L35: 0
H36: 0 | J36: 0 | L36: 0
H37: 0 | J37: 0 | L37: 0
H38: 0 | J38: 0 | L38: 0
H39: 0 | J39: 0 | L39: 0
H40: 0 | J40: 0 | L40: 0
H41: 0 | J41: 0 | L41: 0
H42: 0 | J42: 0 | L42: 0
H43: 0 | J43: 0 | L43: 0
H44: 0 | J44: 0 | L44: 0
H45: 0 | J45: 0 | L45: 0
H46: 0 | J46: 0 | L46: 0
H47: 0 | J47: 0 | L47: 0
H48: 0 | J48: 0 | L48: 0
H49: 0 | J49: 0 | L49: 0
H50: 0 | J50: 0 | L50: 0
H51: 0 | J51: 0 | L51: 0
H52: 0 | J52: 0 | L52: 0
H53: 0 | J53: 0 | L53: 0
H54: 0 | J54: 0 | L54: 0
H55: 0 | J55: 0 | L55: 0
H56: 0 | J56: 0 | L56: 0
H57: 0 | J57: 0 | L57: 0
H58: 0 | J58: 0 | L58: 0
A59: OBS:. | F59: TOTAIS | G59: =SUM(H27:H58) -> 36000 | I59: =SUM(J27:J58) -> 36100 | K59: =SUM(L27:L58) -> 35232
A61: DATA | K61: APROVADO
A62: 2016-01-04

Sheet 2.4
A1: =+'itens projetos'!B11 -> Coordenação Gráfica | I1: ='itens projetos'!C11 -> 11166
A2: VERBA | B2: VR. NOTA | C2: N º CHEQUE | D2: DATA DA SAÍDA | E2: DESCRIÇÃO DA SAÍDA | F2: NF | G2: DATA DA NOTA | H2: QTDADE
A3: =+'itens projetos'!I11 -> 5220 | B3: 5220 | C3: 850011 | D3: 2019-01-30 | E3: KLINTOWITZ COMUNICAÇÃO LTDA | F3: NF 0250 | G3: 2019-01-29
A15: =SUM(A3:A14) -> 5220 | B15: =SUM(B3:B14) -> 5220
A16: SALDO | B16: =A15-B15 -> 0
A20: COTAÇÃO DE MATERIAIS E SERVIÇOS
G23: 1 - Fornecedor | I23: 2 - Fornecedor | K23: 3 - Fornecedor
A24: =+'itens projetos'!A2:M2 -> MARYSIA PORTINARI - UNIVER SO PRÉ-EXISTENTE - PRONAC: 182445 | G24: EGB | I24: IPSIS | K24: UPRISEPRINT
G25: CNPJ: 03.792.721/0001-70 | I25: CNPJ: 61.407.078/0001-10 | K25: CNPJ: 16.887.262/0001-50
A26: QTDE | B26: UNI | C26: COD | D26: DESCRIÇÃO DO MATERIAL | G26: V. UNI | H26: V. TOTAL | I26: V. UNI | J26: V. TOTAL | K26: V. UNI | L26: V. TOTAL
A27: 3000 | C27: 7 | D27: =+A1 -> Coordenação Gráfica | G27: 40 | H27: =A27*G27 -> 120000 | I27: 45 | J27: =I27*A27 -> 135000 | K27: 50 | L27: =K27*A27 -> 150000
H28: =A28*G28 -> 0 | J28: =I28*A28 -> 0 | L28: =K28*A28 -> 0
H29: 0 | J29: 0 | L29: 0
H30: 0 | J30: 0 | L30: 0
H31: 0 | J31: 0 | L31: 0
H32: 0 | J32: 0 | L32: 0
H33: 0 | J33: 0 | L33: 0
H34: 0 | J34: 0 | L34: 0
H35: 0 | J35: 0 | L35: 0
H36: 0 | J36: 0 | L36: 0
H37: 0 | J37: 0 | L37: 0
H38: 0 | J38: 0 | L38: 0
H39: 0 | J39: 0 | L39: 0
H40: 0 | J40: 0 | L40: 0
H41: 0 | J41: 0 | L41: 0
H42: 0 | J42: 0 | L42: 0
H43: 0 | J43: 0 | L43: 0
H44: 0 | J44: 0 | L44: 0
H45: 0 | J45: 0 | L45: 0
H46: 0 | J46: 0 | L46: 0
H47: 0 | J47: 0 | L47: 0
H48: 0 | J48: 0 | L48: 0
H49: 0 | J49: 0 | L49: 0
H50: 0 | J50: 0 | L50: 0
H51: 0 | J51: 0 | L51: 0
H52: 0 | J52: 0 | L52: 0
H53: 0 | J53: 0 | L53: 0
H54: 0 | J54: 0 | L54: 0
H55: 0 | J55: 0 | L55: 0
H56: 0 | J56: 0 | L56: 0
H57: 0 | J57: 0 | L57: 0
H58: 0 | J58: 0 | L58: 0
A59: OBS:. | F59: TOTAIS | G59: =SUM(H27:H58) -> 120000 | I59: =SUM(J27:J58) -> 135000 | K59: =SUM(L27:L58) -> 150000
A61: DATA | G61: APROVADO
A62: 2015-03-18

Sheet 2.5
A1: =+'itens projetos'!B12 -> Custo distribuição para bibliotecas | I1: ='itens projetos'!C12 -> 11167
A2: VERBA | B2: VR. NOTA | C2: N º CHEQUE | D2: DATA DA SAÍDA | E2: DESCRIÇÃO DA SAÍDA | F2: NF | G2: DATA DA NOTA | H2: QTDADE
A3: =+'itens projetos'!I12 -> 2000
A15: =SUM(A3:A14) -> 2000 | B15: =SUM(B3:B14) -> 0
A16: SALDO | B16: =A15-B15 -> 2000
A19: COTAÇÃO DE MATERIAIS E SERVIÇOS
G22: 1 - Fornecedor | I22: 2 - Fornecedor | K22: 3 - Fornecedor
A23: =+'itens projetos'!A2:M2 -> MARYSIA PORTINARI - UNIVER SO PRÉ-EXISTENTE - PRONAC: 182445 | G23: IPSIS | I23: UP RISE | K23: GRAFICA REVELAÇÃO
G24: CNPJ: 61.407.078/0001-10 | I24: CNPJ:16.887.262/0001-50 | K24: CNPJ:08.288.515/0001-40
A25: QTDE | B25: UNI | C25: COD | D25: DESCRIÇÃO DO MATERIAL | G25: V. UNI | H25: V. TOTAL | I25: V. UNI | J25: V. TOTAL | K25: V. UNI | L25: V. TOTAL
A26: 3000 | B26: UNI | C26: 8 | D26: IMPRESSÕES | G26: 35 | H26: =A26*G26 -> 105000 | I26: 43.5 | J26: 130500 | K26: 45 | L26: 135000
H29: =A29*G29 -> 0 | J29: =I29*A29 -> 0 | L29: =K29*A29 -> 0
H30: 0 | J30: 0 | L30: 0
H31: 0 | J31: 0 | L31: 0
H32: 0 | J32: 0 | L32: 0
H33: 0 | J33: 0 | L33: 0
H34: 0 | J34: 0 | L34: 0
H35: 0 | J35: 0 | L35: 0
H36: 0 | J36: 0 | L36: 0
H37: 0 | J37: 0 | L37: 0
H38: 0 | J38: 0 | L38: 0
H39: 0 | J39: 0 | L39: 0
H40: 0 | J40: 0 | L40: 0
H41: 0 | J41: 0 | L41: 0
H42: 0 | J42: 0 | L42: 0
H43: 0 | J43: 0 | L43: 0
H44: 0 | J44: 0 | L44: 0
H45: 0 | J45: 0 | L45: 0
H46: 0 | J46: 0 | L46: 0
H47: 0 | J47: 0 | L47: 0
H48: 0 | J48: 0 | L48: 0
H49: 0 | J49: 0 | L49: 0
H50: 0 | J50: 0 | L50: 0
H51: 0 | J51: 0 | L51: 0
H52: 0 | J52: 0 | L52: 0
H53: 0 | J53: 0 | L53: 0
H54: 0 | J54: 0 | L54: 0
H55: 0 | J55: 0 | L55: 0
H56: 0 | J56: 0 | L56: 0
H57: 0 | J57: 0 | L57: 0
A58: OBS:. | F58: TOTAIS | G58: =SUM(H26:H57) -> 105000 | I58: =SUM(J26:J57) -> 130500 | K58: =SUM(L26:L57) -> 135000
A60: DATA | G60: APROVADO
A61: 2018-01-09

Sheet 3.1
A1: =+'itens projetos'!B13 -> Designer | I1: ='itens projetos'!C13 -> 11168
A2: VERBA | B2: VR. NOTA | C2: N º CHEQUE | D2: DATA DA SAÍDA | E2: DESCRIÇÃO DA SAÍDA | F2: NF | G2: DATA DA NOTA | H2: QTDADE
A3: =+'itens projetos'!I13 -> 12000
A15: =SUM(A3:A14) -> 12000 | B15: =SUM(B3:B14) -> 0
A16: SALDO | B16: =A15-B15 -> 12000
A18: COTAÇÃO DE MATERIAIS E SERVIÇOS
G21: 1 - Fornecedor | I21: 2 - Fornecedor | K21: 3 - Fornecedor
A22: =+'itens projetos'!A2:M2 -> MARYSIA PORTINARI - UNIVER SO PRÉ-EXISTENTE - PRONAC: 182445 | G22: KLINTOWITZ | I22: COR E TAL | K22: LUCKY
G23: CNPJ: 08.977.656/0001-70 | I23: CNPJ: 10.875.118/0001-17 | K23: CNPJ: 00.265.815/0001-00
A24: QTDE | B24: UNI | C24: COD | D24: DESCRIÇÃO DO MATERIAL | G24: V. UNI | H24: V. TOTAL | I24: V. UNI | J24: V. TOTAL | K24: V. UNI | L24: V. TOTAL
A25: 60 | B25: UNI | C25: 9 | D25: REVISÃO DE TEXTO | G25: 35 | H25: =A25*G25 -> 2100 | I25: 40 | J25: =I25*A25 -> 2400 | K25: 45 | L25: =K25*A25 -> 2700
A26: 1 | C26: 10 | D26: TRADUÇÃO | G26: 3500 | H26: =A26*G26 -> 3500 | I26: 4000 | J26: =I26*A26 -> 4000 | K26: 5000 | L26: =K26*A26 -> 5000
H27: 0 | J27: 0 | L27: 0
H28: 0 | J28: 0 | L28: 0
H29: 0 | J29: 0 | L29: 0
H30: 0 | J30: 0 | L30: 0
H31: 0 | J31: 0 | L31: 0
H32: 0 | J32: 0 | L32: 0
H33: 0 | J33: 0 | L33: 0
H34: 0 | J34: 0 | L34: 0
H35: 0 | J35: 0 | L35: 0
H36: 0 | J36: 0 | L36: 0
H37: 0 | J37: 0 | L37: 0
H38: 0 | J38: 0 | L38: 0
H39: 0 | J39: 0 | L39: 0
H40: 0 | J40: 0 | L40: 0
H41: 0 | J41: 0 | L41: 0
H42: 0 | J42: 0 | L42: 0
H43: 0 | J43: 0 | L43: 0
H44: 0 | J44: 0 | L44: 0
H45: 0 | J45: 0 | L45: 0
H46: 0 | J46: 0 | L46: 0
H47: 0 | J47: 0 | L47: 0
H48: 0 | J48: 0 | L48: 0
H49: 0 | J49: 0 | L49: 0
H50: 0 | J50: 0 | L50: 0
H51: 0 | J51: 0 | L51: 0
H52: 0 | J52: 0 | L52: 0
H53: 0 | J53: 0 | L53: 0
H54: 0 | J54: 0 | L54: 0
H55: 0 | J55: 0 | L55: 0
H56: 0 | J56: 0 | L56: 0
A57: OBS:. | F57: TOTAIS | G57: =SUM(H25:H56) -> 5600 | I57: =SUM(J25:J56) -> 6400 | K57: =SUM(L25:L56) -> 7700
A59: DATA | G59: APROVADO
A60: 2018-01-09

Sheet 3.2
A1: =+'itens projetos'!B14 -> Ficha Catalográfica e ISBN | I1: ='itens projetos'!C14 -> 11169
A2: VERBA | B2: VR. NOTA | C2: N º CHEQUE | D2: DATA DA SAÍDA | E2: DESCRIÇÃO DA SAÍDA | F2: NF | G2: DATA DA NOTA | H2: QTDADE
A3: =+'itens projetos'!I14 -> 150
A7: =SUM(A3:A6) -> 150 | B7: =SUM(B3:B6) -> 0
A8: SALDO | B8: =A7-B7 -> 150
A12: COTAÇÃO DE MATERIAIS E SERVIÇOS
G15: 1 - Fornecedor | I15: 2 - Fornecedor | K15: 3 - Fornecedor
A16: =+'itens projetos'!A2:M2 -> MARYSIA PORTINARI - UNIVER SO PRÉ-EXISTENTE - PRONAC: 182445 | G16: COR E TAL | I16: VERTICE | K16: LUCKY
G17: CNPJ: 10.875.118/0001-17 | I17: CNPJ: 06.093.781/0001-92 | K17: CNPJ: 00.265.815/0001-00
A18: QTDE | B18: UNI | C18: COD | D18: DESCRIÇÃO DO MATERIAL | G18: V. UNI | H18: V. TOTAL | I18: V. UNI | J18: V. TOTAL | K18: V. UNI | L18: V. TOTAL
A19: 60 | B19: UNI | C19: 10 | D19: REDATOR | G19: 200 | H19: =A19*G19 -> 12000 | I19: 250 | J19: =I19*A19 -> 15000 | K19: 233.33 | L19: 14000
A20: 20 | B20: UNI | C20: 36 | D20: PRODUÇÃO DE TEXTO | G20: 175 | H20: =A20*G20 -> 3500 | I20: 185 | J20: =I20*A20 -> 3700 | K20: 200 | L20: =K20*A20 -> 4000
A21: 20 | B21: UNI | C21: 38 | D21: REVISÃO DE TEXTO | G21: 15 | H21: 300 | I21: 18 | J21: 360 | K21: 20 | L21: 400
H22: 0 | J22: 0 | L22: 0
H23: 0 | J23: 0 | L23: 0
H24: 0 | J24: 0 | L24: 0
H25: 0 | J25: 0 | L25: 0
H26: 0 | J26: 0 | L26: 0
H27: 0 | J27: 0 | L27: 0
H28: 0 | J28: 0 | L28: 0
H29: 0 | J29: 0 | L29: 0
H30: 0 | J30: 0 | L30: 0
H31: 0 | J31: 0 | L31: 0
H32: 0 | J32: 0 | L32: 0
H33: 0 | J33: 0 | L33: 0
H34: 0 | J34: 0 | L34: 0
H35: 0 | J35: 0 | L35: 0
H36: 0 | J36: 0 | L36: 0
H37: 0 | J37: 0 | L37: 0
H38: 0 | J38: 0 | L38: 0
H39: 0 | J39: 0 | L39: 0
H40: 0 | J40: 0 | L40: 0
H41: 0 | J41: 0 | L41: 0
H42: 0 | J42: 0 | L42: 0
H43: 0 | J43: 0 | L43: 0
H44: 0 | J44: 0 | L44: 0
H45: 0 | J45: 0 | L45: 0
H46: 0 | J46: 0 | L46: 0
H47: 0 | J47: 0 | L47: 0
H48: 0 | J48: 0 | L48: 0
H49: 0 | J49: 0 | L49: 0
H50: 0 | J50: 0 | L50: 0
A51: OBS:. | F51: TOTAIS | G51: =SUM(H19:H50) -> 15800 | I51: =SUM(J19:J50) -> 19060 | K51: =SUM(L19:L50) -> 18400
A53: DATA | G53: APROVADO
A54: 2017-07-08

Sheet 3.3
A1: =+'itens projetos'!B15 -> Fotografia Artística (Fotógrafo, Tratamento, Revelação, etc.) | I1: ='itens projetos'!C15 -> 11170
A2: VERBA | B2: VR. NOTA | C2: N º CHEQUE | D2: DATA DA SAÍDA | E2: DESCRIÇÃO DA SAÍDA | F2: NF | G2: DATA DA NOTA | H2: QTDADE
A3: =+'itens projetos'!I15 -> 20000
A8: =SUM(A3:A7) -> 20000 | B8: =SUM(B3:B7) -> 0
A9: SALDO | B9: =A8-B8 -> 20000
A12: COTAÇÃO DE MATERIAIS E SERVIÇOS
G15: 1 - Fornecedor | I15: 2 - Fornecedor | K15: 3 - Fornecedor
A16: =+'itens projetos'!A2:M2 -> MARYSIA PORTINARI - UNIVER SO PRÉ-EXISTENTE - PRONAC: 182445 | G16: COR E TAL | I16: PEOPLE | K16: BNER
G17: CNJP: 10.875.118/0001-17 | I17: CNPJ: 13.933.022/0001-56 | K17: CNPJ: 82.344.425/0001-82
A18: QTDE | B18: UNI | C18: COD | D18: DESCRIÇÃO DO MATERIAL | G18: V. UNI | H18: V. TOTAL | I18: V. UNI | J18: V. TOTAL | K18: V. UNI | L18: V. TOTAL
A19: 4 | B19: 2 | C19: 11 | D19: COORDENADOR CULTURAL | G19: 7400 | H19: =A19*G19 -> 29600 | I19: 8000 | J19: =A19*I19 -> 32000 | K19: 8400 | L19: =A19*K19 -> 33600
A20: 4 | B20: 8 | C20: 12 | D20: ARTE EDUCADOR | G20: 20000 | H20: =A20*G20 -> 80000 | I20: 20800 | J20: =I20*A20 -> 83200 | K20: 22400 | L20: =K20*A20 -> 89600
A21: 11 | C21: 19 | D21: COORDENAÇÃO GERAL | G21: 5750 | H21: 63250 | I21: 6000 | J21: 66000 | K21: 6200 | L21: 68200
H22: 0 | J22: 0 | L22: 0
H23: 0 | J23: 0 | L23: 0
H24: 0 | J24: 0 | L24: 0
H25: 0 | J25: 0 | L25: 0
H26: 0 | J26: 0 | L26: 0
H27: 0 | J27: 0 | L27: 0
H28: 0 | J28: 0 | L28: 0
H29: 0 | J29: 0 | L29: 0
H30: 0 | J30: 0 | L30: 0
H31: 0 | J31: 0 | L31: 0
H32: 0 | J32: 0 | L32: 0
H33: 0 | J33: 0 | L33: 0
H34: 0 | J34: 0 | L34: 0
H35: 0 | J35: 0 | L35: 0
H36: 0 | J36: 0 | L36: 0
H37: 0 | J37: 0 | L37: 0
H38: 0 | J38: 0 | L38: 0
H39: 0 | J39: 0 | L39: 0
H40: 0 | J40: 0 | L40: 0
H41: 0 | J41: 0 | L41: 0
H42: 0 | J42: 0 | L42: 0
H43: 0 | J43: 0 | L43: 0
H44: 0 | J44: 0 | L44: 0
H45: 0 | J45: 0 | L45: 0
H46: 0 | J46: 0 | L46: 0
H47: 0 | J47: 0 | L47: 0
H48: 0 | J48: 0 | L48: 0
H49: 0 | J49: 0 | L49: 0
H50: 0 | J50: 0 | L50: 0
A51: OBS:. | F51: TOTAIS | G51: =SUM(H19:H50) -> 172850 | I51: =SUM(J19:J50) -> 181200 | K51: =SUM(L19:L50) -> 191400
G53: APROVADO
A54: 2018-01-30

Sheet 3.4
A1: =+'itens projetos'!B16 -> Gravação de vozes | I1: ='itens projetos'!C16 -> 11171
A2: VERBA | B2: VR. NOTA | C2: N º CHEQUE | D2: DATA DA SAÍDA | E2: DESCRIÇÃO DA SAÍDA | F2: NF | G2: DATA DA NOTA | H2: QTDADE
A3: =+'itens projetos'!I16 -> 6000
A16: =SUM(A3:A15) -> 6000 | B16: =SUM(B3:B15) -> 0
A17: SALDO | B17: =A16-B16 -> 6000
A22: COTAÇÃO DE MATERIAIS E SERVIÇOS
G25: 1 - Fornecedor | I25: 2 - Fornecedor | K25: 3 - Fornecedor
A26: =+'itens projetos'!A2:M2 -> MARYSIA PORTINARI - UNIVER SO PRÉ-EXISTENTE - PRONAC: 182445 | G26: BRSA | I26: AGEIMAGEM | K26: ATELIER
G27: CNPJ:03.865.639/0001-28 | I27: CNPJ:07.180.899/0001-10 | K27: CNPJ: 03.499.313/0001-24
A28: QTDE | B28: UNI | C28: COD | D28: DESCRIÇÃO DO MATERIAL | G28: V. UNI | H28: V. TOTAL | I28: V. UNI | J28: V. TOTAL | K28: V. UNI | L28: V. TOTAL
A29: 4 | B29: SERVIÇOS | C29: 12 | D29: ASSESSORIA DE IMPRENSA | G29: 3500 | H29: =A29*G29 -> 14000 | I29: 3000 | J29: =I29*A29 -> 12000 | K29: 4000 | L29: =K29*A29 -> 16000
H33: =A33*G33 -> 0 | J33: =I33*A33 -> 0 | L33: =K33*A33 -> 0
H34: 0 | J34: 0 | L34: 0
H35: 0 | J35: 0 | L35: 0
H36: 0 | J36: 0 | L36: 0
H37: 0 | J37: 0 | L37: 0
H38: 0 | J38: 0 | L38: 0
H39: 0 | J39: 0 | L39: 0
H40: 0 | J40: 0 | L40: 0
H41: 0 | J41: 0 | L41: 0
H42: 0 | J42: 0 | L42: 0
H43: 0 | J43: 0 | L43: 0
H44: 0 | J44: 0 | L44: 0
H45: 0 | J45: 0 | L45: 0
H46: 0 | J46: 0 | L46: 0
H47: 0 | J47: 0 | L47: 0
H48: 0 | J48: 0 | L48: 0
H49: 0 | J49: 0 | L49: 0
H50: 0 | J50: 0 | L50: 0
H51: 0 | J51: 0 | L51: 0
H52: 0 | J52: 0 | L52: 0
H53: 0 | J53: 0 | L53: 0
H54: 0 | J54: 0 | L54: 0
H55: 0 | J55: 0 | L55: 0
H56: 0 | J56: 0 | L56: 0
H57: 0 | J57: 0 | L57: 0
H58: 0 | J58: 0 | L58: 0
H59: 0 | J59: 0 | L59: 0
H60: 0 | J60: 0 | L60: 0
A61: OBS:. | F61: TOTAIS | G61: =SUM(H29:H60) -> 14000 | I61: =SUM(J29:J60) -> 12000 | K61: =SUM(L29:L60) -> 16000
A63: DATA | I63: APROVADO
A64: 2016-01-04

Sheet 3.5
A1: =+'itens projetos'!B17 -> Impressão | I1: ='itens projetos'!C17 -> 11172
A2: VERBA | B2: VR. NOTA | C2: N º CHEQUE | D2: DATA DA SAÍDA | E2: DESCRIÇÃO DA SAÍDA | F2: NF | G2: DATA DA NOTA | H2: QTDADE
A3: =+'itens projetos'!I17 -> 138000 | B3: 138000 | C3: 850010 | D3: 2019-02-06 | E3: IPSIS GRAFICA E EDITORA S.A | F3: NF 66349 | G3: 2019-01-31 | H3: 3000
A8: =SUM(A3:A7) -> 138000 | B8: =SUM(B3:B7) -> 138000
A9: SALDO | B9: =A8-B8 -> 0
A11: COTAÇÃO DE MATERIAIS E SERVIÇOS
G14: 1 - Fornecedor | I14: 2 - Fornecedor | K14: 3 - Fornecedor
A15: =+'itens projetos'!A2:M2 -> MARYSIA PORTINARI - UNIVER SO PRÉ-EXISTENTE - PRONAC: 182445 | G15: JOSIANE | I15: COKTAIL | K15: JD REPRODUÇÕES
G16: CNPJ: 18.775.988/0001-26 | I16: CNPJ: 15.021.896/0001-62 | K16: CNPJ: 12.121.441/0001-20
A17: QTDE | B17: UNI | C17: COD | D17: DESCRIÇÃO DO MATERIAL | G17: V. UNI | H17: V. TOTAL | I17: V. UNI | J17: V. TOTAL | K17: V. UNI | L17: V. TOTAL
A18: 1 | B18: Unidade | C18: 13 | D18: MATERIAL DE APOIO PEDAGOGICO | G18: 514.61 | H18: 514.61 | I18: 600 | J18: 600 | K18: 700 | L18: 700
H19: =A19*G19 -> 0 | J19: =I19*A19 -> 0 | L19: =K19*A19 -> 0
H20: 0 | J20: 0 | L20: 0
H21: 0 | J21: 0 | L21: 0
H22: 0 | J22: 0 | L22: 0
H23: 0 | J23: 0 | L23: 0
H24: 0 | J24: 0 | L24: 0
H25: 0 | J25: 0 | L25: 0
H26: 0 | J26: 0 | L26: 0
H27: 0 | J27: 0 | L27: 0
H28: 0 | J28: 0 | L28: 0
H29: 0 | J29: 0 | L29: 0
H30: 0 | J30: 0 | L30: 0
H31: 0 | J31: 0 | L31: 0
H32: 0 | J32: 0 | L32: 0
H33: 0 | J33: 0 | L33: 0
H34: 0 | J34: 0 | L34: 0
H35: 0 | J35: 0 | L35: 0
H36: 0 | J36: 0 | L36: 0
H37: 0 | J37: 0 | L37: 0
H38: 0 | J38: 0 | L38: 0
H39: 0 | J39: 0 | L39: 0
H40: 0 | J40: 0 | L40: 0
H41: 0 | J41: 0 | L41: 0
H42: 0 | J42: 0 | L42: 0
H43: 0 | J43: 0 | L43: 0
H44: 0 | J44: 0 | L44: 0
H45: 0 | J45: 0 | L45: 0
H46: 0 | J46: 0 | L46: 0
H47: 0 | J47: 0 | L47: 0
H48: 0 | J48: 0 | L48: 0
H49: 0 | J49: 0 | L49: 0
A50: OBS:. | F50: TOTAIS | G50: =SUM(H18:H49) -> 514.61 | I50: =SUM(J18:J49) -> 600 | K50: =SUM(L18:L49) -> 700
A52: 2018-01-30 | G52: APROVADO

Sheet 3.6
A1: =+'itens projetos'!B18 -> Revisão de Texto | I1: =+'itens projetos'!C18 -> 11173
A2: VERBA | B2: VR. NOTA | C2: N º CHEQUE | D2: DATA DA SAÍDA | E2: DESCRIÇÃO DA SAÍDA | F2: NF | G2: DATA DA NOTA | H2: QTDADE
A3: =+'itens projetos'!I18 -> 3240 | B3: 3240 | C3: 850012 | D3: 2019-01-30 | E3: KLINTOWITZ COMUNICAÇÃO LTDA | F3: NF 0251 | G3: 2019-01-29
A7: =SUM(A3:A6) -> 3240 | B7: =SUM(B3:B6) -> 3240
A8: SALDO | B8: =A7-B7 -> 0
A12: COTAÇÃO DE MATERIAIS E SERVIÇOS
G15: 1 - Fornecedor | I15: 2 - Fornecedor | K15: 3 - Fornecedor
A16: =+'itens projetos'!A2:M2 -> MARYSIA PORTINARI - UNIVER SO PRÉ-EXISTENTE - PRONAC: 182445 | G16: JD REPRODUÇÕES | I16: EPS GRAFICA | K16: COCKTAIL
G17: CNPJ: 12.121.441/0001-20 | I17: CNPJ: 05.004.458/0001-32 | K17: CNPJ: 15.021.896/0001-62
A18: QTDE | B18: UNI | C18: COD | D18: DESCRIÇÃO DO MATERIAL | G18: V. UNI | H18: V. TOTAL | I18: V. UNI | J18: V. TOTAL | K18: V. UNI | L18: V. TOTAL
A19: 3000 | C19: 14 | D19: IMPRESSÃO CONVITES | G19: 2 | H19: =A19*G19 -> 6000 | I19: 2.5 | J19: =I19*A19 -> 7500 | K19: 2.8 | L19: =K19*A19 -> 8400
A20: 5 | C20: 15 | D20: IMPRESSÃO DE BANNERS | G20: 350 | H20: =A20*G20 -> 1750 | I20: 380 | J20: =I20*A20 -> 1900 | K20: 400 | L20: =K20*A20 -> 2000
A21: 2000 | C21: 16 | D21: IMPRESSÃO DE FOLDERS | G21: 2.5 | H21: 5000 | I21: 3 | J21: 6000 | K21: 3.5 | L21: 7000
A22: 2 | C22: 21 | D22: EMBALAGEM E ACONDICONAMENTO PARA EXPOSIÇÃO | G22: 1750 | H22: 3500 | I22: 2000 | J22: 4000 | K22: 2300 | L22: 4600
A23: 1 | C23: 25 | D23: IMPRESSÃO DE ADESIVO | G23: 2000 | H23: 2000 | I23: 2200 | J23: 2200 | K23: 2300 | L23: 2300
A24: 1 | C24: 27 | D24: IMPRESSÃO BRAILE | G24: 9800 | H24: 9800 | I24: 10000 | J24: 10000 | K24: 12000 | L24: 12000
A25: 1 | C25: 37 | D25: PROJETO GRAFICO | G25: 3000 | H25: 3000 | I25: 3500 | J25: 3500 | K25: 4000 | L25: 4000
H26: 0 | J26: 0 | L26: 0
H27: 0 | J27: 0 | L27: 0
H28: 0 | J28: 0 | L28: 0
H29: 0 | J29: 0 | L29: 0
H30: 0 | J30: 0 | L30: 0
H31: 0 | J31: 0 | L31: 0
H32: 0 | J32: 0 | L32: 0
H33: 0 | J33: 0 | L33: 0
H34: 0 | J34: 0 | L34: 0
H35: 0 | J35: 0 | L35: 0
H36: 0 | J36: 0 | L36: 0
H37: 0 | J37: 0 | L37: 0
H38: 0 | J38: 0 | L38: 0
H39: 0 | J39: 0 | L39: 0
H40: 0 | J40: 0 | L40: 0
H41: 0 | J41: 0 | L41: 0
H42: 0 | J42: 0 | L42: 0
H43: 0 | J43: 0 | L43: 0
H44: 0 | J44: 0 | L44: 0
H45: 0 | J45: 0 | L45: 0
H46: 0 | J46: 0 | L46: 0
H47: 0 | J47: 0 | L47: 0
H48: 0 | J48: 0 | L48: 0
H49: 0 | J49: 0 | L49: 0
H50: 0 | J50: 0 | L50: 0
A51: OBS:. | F51: TOTAIS | G51: =SUM(H19:H50) -> 31050 | I51: =SUM(J19:J50) -> 35100 | K51: =SUM(L19:L50) -> 40300
A53: DATA | G53: APROVADO
A54: 2017-07-08

Sheet 3.7
A1: =+'itens projetos'!B19 -> Tradução | I1: ='itens projetos'!C19 -> 11174
A2: VERBA | B2: VR. NOTA | C2: N º CHEQUE | D2: DATA DA SAÍDA | E2: DESCRIÇÃO DA SAÍDA | F2: NF | G2: DATA DA NOTA | H2: QTDADE
A3: =+'itens projetos'!I19 -> 4000
A7: =SUM(A3:A6) -> 4000 | B7: =SUM(B3:B6) -> 0
A8: SALDO | B8: =A7-B7 -> 4000
A12: COTAÇÃO DE MATERIAIS E SERVIÇOS
G15: 1 - Fornecedor | I15: 2 - Fornecedor | K15: 3 - Fornecedor
A16: =+'itens projetos'!A2:M2 -> MARYSIA PORTINARI - UNIVER SO PRÉ-EXISTENTE - PRONAC: 182445 | G16: COKTAIL | I16: REVELAÇÃO | K16: UPRISE
G17: CNPJ: 15.021.896/0001-62 | I17: CNPJ: 08.288.515/0001-40 | K17: CNPJ: 16.887.262/0001-50
A18: QTDE | B18: UNI | C18: COD | D18: DESCRIÇÃO DO MATERIAL | G18: V. UNI | H18: V. TOTAL | I18: V. UNI | J18: V. TOTAL | K18: V. UNI | L18: V. TOTAL
A19: 2000 | B19: UNIDADE | C19: 15 | D19: Folders. | G19: 2.5 | H19: =A19*G19 -> 5000 | I19: 3.8 | J19: =I19*A19 -> 7600 | K19: 4.1 | L19: =K19*A19 -> 8200
H20: =A20*G20 -> 0 | J20: =I20*A20 -> 0 | L20: =K20*A20 -> 0
H21: 0 | J21: 0 | L21: 0
H22: 0 | J22: 0 | L22: 0
H23: 0 | J23: 0 | L23: 0
H24: 0 | J24: 0 | L24: 0
H25: 0 | J25: 0 | L25: 0
H26: 0 | J26: 0 | L26: 0
H27: 0 | J27: 0 | L27: 0
H28: 0 | J28: 0 | L28: 0
H29: 0 | J29: 0 | L29: 0
H30: 0 | J30: 0 | L30: 0
H31: 0 | J31: 0 | L31: 0
H32: 0 | J32: 0 | L32: 0
H33: 0 | J33: 0 | L33: 0
H34: 0 | J34: 0 | L34: 0
H35: 0 | J35: 0 | L35: 0
H36: 0 | J36: 0 | L36: 0
H37: 0 | J37: 0 | L37: 0
H38: 0 | J38: 0 | L38: 0
H39: 0 | J39: 0 | L39: 0
H40: 0 | J40: 0 | L40: 0
H41: 0 | J41: 0 | L41: 0
H42: 0 | J42: 0 | L42: 0
H43: 0 | J43: 0 | L43: 0
H44: 0 | J44: 0 | L44: 0
H45: 0 | J45: 0 | L45: 0
H46: 0 | J46: 0 | L46: 0
H47: 0 | J47: 0 | L47: 0
H48: 0 | J48: 0 | L48: 0
H49: 0 | J49: 0 | L49: 0
H50: 0 | J50: 0 | L50: 0
A51: OBS:. | F51: TOTAIS | G51: =SUM(H19:H50) -> 5000 | I51: =SUM(J19:J50) -> 7600 | K51: =SUM(L19:L50) -> 8200
A53: DATA | G53: APROVADO
A54: 2016-01-04

Sheet 3.8
A1: =+'itens projetos'!B20 -> Advogado | I1: ='itens projetos'!C20 -> 11175
A2: VERBA | B2: VR. NOTA | C2: N º CHEQUE | D2: DATA DA SAÍDA | E2: DESCRIÇÃO DA SAÍDA | F2: NF | G2: DATA DA NOTA | H2: QTDADE
A3: =+'itens projetos'!I20 -> 9000
A7: =SUM(A3:A6) -> 9000 | B7: =SUM(B3:B6) -> 0
A8: SALDO | B8: =A7-B7 -> 9000
A11: COTAÇÃO DE MATERIAIS E SERVIÇOS
G14: 1 - Fornecedor | I14: 2 - Fornecedor | K14: 3 - Fornecedor
A15: =+'itens projetos'!A2:M2 -> MARYSIA PORTINARI - UNIVER SO PRÉ-EXISTENTE - PRONAC: 182445 | G15: 3º VISÃO | I15: BIT CLICK | K15: SAT 5 CENA
G16: CNPJ: 43.865.484/0001-44 | I16: CNPJ: 58.102.252/0001-01 | K16: CNPJ: 06.181.012/0001-46
A17: QTDE | B17: UNI | C17: COD | D17: DESCRIÇÃO DO MATERIAL | G17: V. UNI | H17: V. TOTAL | I17: V. UNI | J17: V. TOTAL | K17: V. UNI | L17: V. TOTAL
A18: 2 | B18: SERVIÇOS | C18: 16 | D18: Fotografia Artística (Fotógrafo, Tratamento, Revelação, etc.) | G18: 2500 | H18: =A18*G18 -> 5000 | I18: 2800 | J18: =I18*A18 -> 5600 | K18: 3000 | L18: =K18*A18 -> 6000
H19: =A19*G19 -> 0 | J19: =I19*A19 -> 0 | L19: =K19*A19 -> 0
H20: 0 | J20: 0 | L20: 0
H21: 0 | J21: 0 | L21: 0
H22: 0 | J22: 0 | L22: 0
H23: 0 | J23: 0 | L23: 0
H24: 0 | J24: 0 | L24: 0
H25: 0 | J25: 0 | L25: 0
H26: 0 | J26: 0 | L26: 0
H27: 0 | J27: 0 | L27: 0
H28: 0 | J28: 0 | L28: 0
H29: 0 | J29: 0 | L29: 0
H30: 0 | J30: 0 | L30: 0
H31: 0 | J31: 0 | L31: 0
H32: 0 | J32: 0 | L32: 0
H33: 0 | J33: 0 | L33: 0
H34: 0 | J34: 0 | L34: 0
H35: 0 | J35: 0 | L35: 0
H36: 0 | J36: 0 | L36: 0
H37: 0 | J37: 0 | L37: 0
H38: 0 | J38: 0 | L38: 0
H39: 0 | J39: 0 | L39: 0
H40: 0 | J40: 0 | L40: 0
H41: 0 | J41: 0 | L41: 0
H42: 0 | J42: 0 | L42: 0
H43: 0 | J43: 0 | L43: 0
H44: 0 | J44: 0 | L44: 0
H45: 0 | J45: 0 | L45: 0
H46: 0 | J46: 0 | L46: 0
H47: 0 | J47: 0 | L47: 0
H48: 0 | J48: 0 | L48: 0
H49: 0 | J49: 0 | L49: 0
A50: OBS:. | F50: TOTAIS | G50: =SUM(H18:H49) -> 5000 | I50: =SUM(J18:J49) -> 5600 | K50: =SUM(L18:L49) -> 6000
A52: DATA | G52: APROVADO
A53: 2016-01-04

Sheet 3.9
A1: =+'itens projetos'!B21 -> Contador | I1: ='itens projetos'!C21 -> 11176
A2: VERBA | B2: VR. NOTA | C2: N º CHEQUE | D2: DATA DA SAÍDA | E2: DESCRIÇÃO DA SAÍDA | F2: NF | G2: DATA DA NOTA | H2: QTDADE
A3: =+'itens projetos'!I21 -> 8586
A7: =SUM(A3:A6) -> 8586 | B7: =SUM(B3:B6) -> 0
A8: SALDO | B8: =A7-B7 -> 8586
A11: COTAÇÃO DE MATERIAIS E SERVIÇOS
G14: 1 - Fornecedor | I14: 2 - Fornecedor | K14: 3 - Fornecedor
A15: =+'itens projetos'!A2:M2 -> MARYSIA PORTINARI - UNIVER SO PRÉ-EXISTENTE - PRONAC: 182445 | G15: AG INFORMATICA | I15: ALFAYED | K15: NETESTUDIO
G16: CNPJ: 11.338.815/0001-00 | I16: CNPJ: 17.231.271/0001-03 | K16: CNPJ: 07.171.393/0001-45
A17: QTDE | B17: UNI | C17: COD | D17: DESCRIÇÃO DO MATERIAL | G17: V. UNI | H17: V. TOTAL | I17: V. UNI | J17: V. TOTAL | K17: V. UNI | L17: V. TOTAL
A18: 6 | C18: 17 | D18: Sítio de Internet - Design e criação | G18: 600 | H18: =A18*G18 -> 3600 | I18: 650 | J18: =I18*A18 -> 3900 | K18: 700 | L18: =K18*A18 -> 4200
H19: =A19*G19 -> 0 | J19: =I19*A19 -> 0 | L19: =K19*A19 -> 0
H20: 0 | J20: 0 | L20: 0
H21: 0 | J21: 0 | L21: 0
H22: 0 | J22: 0 | L22: 0
H23: 0 | J23: 0 | L23: 0
H24: 0 | J24: 0 | L24: 0
H25: 0 | J25: 0 | L25: 0
H26: 0 | J26: 0 | L26: 0
H27: 0 | J27: 0 | L27: 0
H28: 0 | J28: 0 | L28: 0
H29: 0 | J29: 0 | L29: 0
H30: 0 | J30: 0 | L30: 0
H31: 0 | J31: 0 | L31: 0
H32: 0 | J32: 0 | L32: 0
H33: 0 | J33: 0 | L33: 0
H34: 0 | J34: 0 | L34: 0
H35: 0 | J35: 0 | L35: 0
H36: 0 | J36: 0 | L36: 0
H37: 0 | J37: 0 | L37: 0
H38: 0 | J38: 0 | L38: 0
H39: 0 | J39: 0 | L39: 0
H40: 0 | J40: 0 | L40: 0
H41: 0 | J41: 0 | L41: 0
H42: 0 | J42: 0 | L42: 0
H43: 0 | J43: 0 | L43: 0
H44: 0 | J44: 0 | L44: 0
H45: 0 | J45: 0 | L45: 0
H46: 0 | J46: 0 | L46: 0
H47: 0 | J47: 0 | L47: 0
H48: 0 | J48: 0 | L48: 0
H49: 0 | J49: 0 | L49: 0
A50: OBS:. | F50: TOTAIS | G50: =SUM(H18:H49) -> 3600 | I50: =SUM(J18:J49) -> 3900 | K50: =SUM(L18:L49) -> 4200
A52: DATA | G52: APROVADO
A53: 2015-01-06

Sheet 3.10
A1: =+'itens projetos'!B22 -> Curador
A2: VERBA | B2: VR. NOTA | C2: N º CHEQUE | D2: DATA DA SAÍDA | E2: DESCRIÇÃO DA SAÍDA | F2: NF | G2: DATA DA NOTA | H2: QTDADE | I2: ='itens projetos'!C22 -> 11177
A3: =+'itens projetos'!I22 -> 15000
A7: =SUM(A3:A6) -> 15000 | B7: =SUM(B3:B6) -> 0
A8: SALDO | B8: =A7-B7 -> 15000
A12: COTAÇÃO DE MATERIAIS E SERVIÇOS
G15: 1 - Fornecedor | I15: 2 - Fornecedor | K15: 3 - Fornecedor
A16: =+'itens projetos'!A2:M2 -> MARYSIA PORTINARI - UNIVER SO PRÉ-EXISTENTE - PRONAC: 182445 | G16: COR E TAL | I16: KLINTOWITZ | K16: LUCKY
G17: CNPJ: 10.875.118/0001-17 | I17: CNPJ: 08.977.656/0001-70 | K17: CNPJ: 00.265.815/0001-00
A18: QTDE | B18: UNI | C18: COD | D18: DESCRIÇÃO DO MATERIAL | G18: V. UNI | H18: V. TOTAL | I18: V. UNI | J18: V. TOTAL | K18: V. UNI | L18: V. TOTAL
A19: 1 | C19: 18 | D19: Curadoria | G19: 16000 | H19: =A19*G19 -> 16000 | I19: 17600 | J19: =I19*A19 -> 17600 | K19: 18000 | L19: =K19*A19 -> 18000
H20: =A20*G20 -> 0 | J20: =I20*A20 -> 0 | L20: =K20*A20 -> 0
H21: 0 | J21: 0 | L21: 0
H22: 0 | J22: 0 | L22: 0
H23: 0 | J23: 0 | L23: 0
H24: 0 | J24: 0 | L24: 0
H25: 0 | J25: 0 | L25: 0
H26: 0 | J26: 0 | L26: 0
H27: 0 | J27: 0 | L27: 0
H28: 0 | J28: 0 | L28: 0
H29: 0 | J29: 0 | L29: 0
H30: 0 | J30: 0 | L30: 0
H31: 0 | J31: 0 | L31: 0
H32: 0 | J32: 0 | L32: 0
H33: 0 | J33: 0 | L33: 0
H34: 0 | J34: 0 | L34: 0
H35: 0 | J35: 0 | L35: 0
H36: 0 | J36: 0 | L36: 0
H37: 0 | J37: 0 | L37: 0
H38: 0 | J38: 0 | L38: 0
H39: 0 | J39: 0 | L39: 0
H40: 0 | J40: 0 | L40: 0
H41: 0 | J41: 0 | L41: 0
H42: 0 | J42: 0 | L42: 0
H43: 0 | J43: 0 | L43: 0
H44: 0 | J44: 0 | L44: 0
H45: 0 | J45: 0 | L45: 0
H46: 0 | J46: 0 | L46: 0
H47: 0 | J47: 0 | L47: 0
H48: 0 | J48: 0 | L48: 0
H49: 0 | J49: 0 | L49: 0
H50: 0 | J50: 0 | L50: 0
A51: OBS:. | F51: TOTAIS | G51: =SUM(H19:H50) -> 16000 | I51: =SUM(J19:J50) -> 17600 | K51: =SUM(L19:L50) -> 18000
A53: DATA | G53: APROVADO
A54: 2015-01-07

Sheet 3.11
A1: =+'itens projetos'!B23 -> Adesivos
A2: VERBA | B2: VR. NOTA | C2: N º CHEQUE | D2: DATA DA SAÍDA | E2: DESCRIÇÃO DA SAÍDA | F2: NF | G2: DATA DA NOTA | H2: QTDADE | I2: ='itens projetos'!C23 -> 11178
A3: =+'itens projetos'!I23 -> 2200
A15: =SUM(A3:A14) -> 2200 | B15: =SUM(B3:B14) -> 0
A16: SALDO | B16: =A15-B15 -> 2200
A19: COTAÇÃO DE MATERIAIS E SERVIÇOS
G22: 1 - Fornecedor | I22: 2 - Fornecedor | K22: 3 - Fornecedor
A23: =+'itens projetos'!A2:M2 -> MARYSIA PORTINARI - UNIVER SO PRÉ-EXISTENTE - PRONAC: 182445 | G23: CHOUWA LTDA ME | I23: DIOGO MARIOTINI ME | K23: MERCADÃO DOS ESPORTES
G24: CNPJ: 74.219.155/0001-50 | I24: CNPJ: 11.667.423/0001-86 | K24: CNPJ: 60.955.325/0001-50
A25: QTDE | B25: UNI | C25: COD | D25: DESCRIÇÃO DO MATERIAL | G25: V. UNI | H25: V. TOTAL | I25: V. UNI | J25: V. TOTAL | K25: V. UNI | L25: V. TOTAL
A26: 50 | C26: 3.11 | D26: Fita de Cetim | G26: 1 | H26: 50 | I26: 2 | J26: =I26*A26 -> 100 | K26: 1.3 | L26: =K26*A26 -> 65
H27: =A27*G27 -> 0 | J27: =I27*A27 -> 0 | L27: =K27*A27 -> 0
H28: 0 | J28: 0 | L28: 0
H29: 0 | J29: 0 | L29: 0
H30: 0 | J30: 0 | L30: 0
H31: 0 | J31: 0 | L31: 0
H32: 0 | J32: 0 | L32: 0
H33: 0 | J33: 0 | L33: 0
H34: 0 | J34: 0 | L34: 0
H35: 0 | J35: 0 | L35: 0
H36: 0 | J36: 0 | L36: 0
H37: 0 | J37: 0 | L37: 0
H38: 0 | J38: 0 | L38: 0
H39: 0 | J39: 0 | L39: 0
H40: 0 | J40: 0 | L40: 0
H41: 0 | J41: 0 | L41: 0
H42: 0 | J42: 0 | L42: 0
H43: 0 | J43: 0 | L43: 0
H44: 0 | J44: 0 | L44: 0
H45: 0 | J45: 0 | L45: 0
H46: 0 | J46: 0 | L46: 0
H47: 0 | J47: 0 | L47: 0
H48: 0 | J48: 0 | L48: 0
H49: 0 | J49: 0 | L49: 0
H50: 0 | J50: 0 | L50: 0
H51: 0 | J51: 0 | L51: 0
H52: 0 | J52: 0 | L52: 0
H53: 0 | J53: 0 | L53: 0
H54: 0 | J54: 0 | L54: 0
H55: 0 | J55: 0 | L55: 0
H56: 0 | J56: 0 | L56: 0
H57: 0 | J57: 0 | L57: 0
A58: OBS:. | F58: TOTAIS | G58: =SUM(H26:H57) -> 50 | I58: =SUM(J26:J57) -> 100 | K58: =SUM(L26:L57) -> 65
A60: DATA | G60: APROVADO
A61: 2014-03-13

Sheet 3.12
A1: =+'itens projetos'!B24 -> Cenografia/material/confecção
A2: VERBA | B2: VR. NOTA | C2: N º CHEQUE | D2: DATA DA SAÍDA | E2: DESCRIÇÃO DA SAÍDA | F2: NF | G2: DATA DA NOTA | H2: QTDADE | I2: ='itens projetos'!C24 -> 11179
A3: =+'itens projetos'!I24 -> 4500
A7: =SUM(A3:A6) -> 4500 | B7: =SUM(B3:B6) -> 0
A8: SALDO | B8: =A7-B7 -> 4500
A12: COTAÇÃO DE MATERIAIS E SERVIÇOS
G15: 1 - Fornecedor | I15: 2 - Fornecedor | K15: 3 - Fornecedor
A16: =+'itens projetos'!A2:M2 -> MARYSIA PORTINARI - UNIVER SO PRÉ-EXISTENTE - PRONAC: 182445 | G16: COR E TAL | I16: KLINTOWITZ | K16: LUCKY
G17: CNPJ: 10.875.118/0001-17 | I17: CNPJ: 08.977.656/0001-70 | K17: CNPJ: 00.265.815/0001-00
A18: QTDE | B18: UNI | C18: COD | D18: DESCRIÇÃO DO MATERIAL | G18: V. UNI | H18: V. TOTAL | I18: V. UNI | J18: V. TOTAL | K18: V. UNI | L18: V. TOTAL
A19: 1 | C19: 20 | D19: CURADORIA | G19: 16000 | H19: =A19*G19 -> 16000 | I19: 18000 | J19: 18000 | K19: 20000 | L19: =K19*A19 -> 20000
H20: =A20*G20 -> 0 | J20: =I20*A20 -> 0 | L20: =K20*A20 -> 0
H21: 0 | J21: 0 | L21: 0
H22: 0 | J22: 0 | L22: 0
H23: 0 | J23: 0 | L23: 0
H24: 0 | J24: 0 | L24: 0
H25: 0 | J25: 0 | L25: 0
H26: 0 | J26: 0 | L26: 0
H27: 0 | J27: 0 | L27: 0
H28: 0 | J28: 0 | L28: 0
H29: 0 | J29: 0 | L29: 0
H30: 0 | J30: 0 | L30: 0
H31: 0 | J31: 0 | L31: 0
H32: 0 | J32: 0 | L32: 0
H33: 0 | J33: 0 | L33: 0
H34: 0 | J34: 0 | L34: 0
H35: 0 | J35: 0 | L35: 0
H36: 0 | J36: 0 | L36: 0
H37: 0 | J37: 0 | L37: 0
H38: 0 | J38: 0 | L38: 0
H39: 0 | J39: 0 | L39: 0
H40: 0 | J40: 0 | L40: 0
H41: 0 | J41: 0 | L41: 0
H42: 0 | J42: 0 | L42: 0
H43: 0 | J43: 0 | L43: 0
H44: 0 | J44: 0 | L44: 0
H45: 0 | J45: 0 | L45: 0
H46: 0 | J46: 0 | L46: 0
H47: 0 | J47: 0 | L47: 0
H48: 0 | J48: 0 | L48: 0
H49: 0 | J49: 0 | L49: 0
H50: 0 | J50: 0 | L50: 0
A51: OBS:. | F51: TOTAIS | G51: =SUM(H19:H50) -> 16000 | I51: =SUM(J19:J50) -> 18000 | K51: =SUM(L19:L50) -> 20000
A53: DATA | G53: APROVADO
A54: 2017-07-08

Sheet 3.13
A1: =+'itens projetos'!B25 -> Coordenação geral
A2: VERBA | B2: VR. NOTA | C2: N º CHEQUE | D2: DATA DA SAÍDA | E2: DESCRIÇÃO DA SAÍDA | F2: NF | G2: DATA DA NOTA | H2: QTDADE | I2: ='itens projetos'!C25 -> 11180
A3: =+'itens projetos'!I25 -> 51750
A16: =SUM(A3:A15) -> 51750 | B16: =SUM(B3:B15) -> 0 | H16: =SUM(H3:H15) -> 0
A17: SALDO | B17: =A16-B16 -> 51750
A21: COTAÇÃO DE MATERIAIS E SERVIÇOS
G24: 1 - Fornecedor | I24: 2 - Fornecedor | K24: 3 - Fornecedor
A25: =+'itens projetos'!A2:M2 -> MARYSIA PORTINARI - UNIVER SO PRÉ-EXISTENTE - PRONAC: 182445
A27: QTDE | B27: UNI | C27: COD | D27: DESCRIÇÃO DO MATERIAL | G27: V. UNI | H27: V. TOTAL | I27: V. UNI | J27: V. TOTAL | K27: V. UNI | L27: V. TOTAL
H28: =A28*G28 -> 0 | J28: =I28*A28 -> 0 | L28: =K28*A28 -> 0
H29: =A29*G29 -> 0 | J29: =I29*A29 -> 0 | L29: =K29*A29 -> 0
H30: 0 | J30: 0 | L30: 0
H31: 0 | J31: 0 | L31: 0
H32: 0 | J32: 0 | L32: 0
H33: 0 | J33: 0 | L33: 0
H34: 0 | J34: 0 | L34: 0
H35: 0 | J35: 0 | L35: 0
H36: 0 | J36: 0 | L36: 0
H37: 0 | J37: 0 | L37: 0
H38: 0 | J38: 0 | L38: 0
H39: 0 | J39: 0 | L39: 0
H40: 0 | J40: 0 | L40: 0
H41: 0 | J41: 0 | L41: 0
H42: 0 | J42: 0 | L42: 0
H43: 0 | J43: 0 | L43: 0
H44: 0 | J44: 0 | L44: 0
H45: 0 | J45: 0 | L45: 0
H46: 0 | J46: 0 | L46: 0
H47: 0 | J47: 0 | L47: 0
H48: 0 | J48: 0 | L48: 0
H49: 0 | J49: 0 | L49: 0
H50: 0 | J50: 0 | L50: 0
H51: 0 | J51: 0 | L51: 0
H52: 0 | J52: 0 | L52: 0
H53: 0 | J53: 0 | L53: 0
H54: 0 | J54: 0 | L54: 0
H55: 0 | J55: 0 | L55: 0
H56: 0 | J56: 0 | L56: 0
H57: 0 | J57: 0 | L57: 0
H58: 0 | J58: 0 | L58: 0
H59: 0 | J59: 0 | L59: 0
A60: OBS:. | F60: TOTAIS | G60: =SUM(H28:H59) -> 0 | I60: =SUM(J28:J59) -> 0 | K60: =SUM(L28:L59) -> 0
A62: DATA | G62: APROVADO
A63: 2013-05-29

Sheet 4.1
A1: =+'itens projetos'!B26 -> Embalagem e acondicionamento para a exposição
A2: VERBA | B2: VR. NOTA | C2: N º CHEQUE | D2: DATA DA SAÍDA | E2: DESCRIÇÃO DA SAÍDA | F2: NF | G2: DATA DA NOTA | H2: QTDADE | I2: ='itens projetos'!C26 -> 11181
A3: =+'itens projetos'!I26 -> 2200
A11: =SUM(A3:A10) -> 2200 | B11: =SUM(B3:B10) -> 0
A12: SALDO | B12: =A11-B11 -> 2200
A14: COTAÇÃO DE MATERIAIS E SERVIÇOS
G17: 1 - Fornecedor | I17: 2 - Fornecedor | K17: 3 - Fornecedor
A18: =+'itens projetos'!A2:M2 -> MARYSIA PORTINARI - UNIVER SO PRÉ-EXISTENTE - PRONAC: 182445 | G18: COR E TAL | I18: KLINTOWITZ | K18: LUCKY
G19: CNPJ: 10.875.118/0001-17 | I19: CNPJ: 08.977.656/0001-70 | K19: CNPJ: 00.265.815/0001-00
A20: QTDE | B20: UNI | C20: COD | D20: DESCRIÇÃO DO MATERIAL | G20: V. UNI | H20: V. TOTAL | I20: V. UNI | J20: V. TOTAL | K20: V. UNI | L20: V. TOTAL
A21: 1 | C21: 22 | D21: Projeto de Comunicação Visual | G21: 10000 | H21: =A21*G21 -> 10000 | I21: 12000 | J21: =I21*A21 -> 12000 | K21: 14000 | L21: =K21*A21 -> 14000
H22: =A22*G22 -> 0 | J22: 0 | L22: =K22*A22 -> 0
H23: 0 | J23: 0 | L23: 0
H24: 0 | J24: 0 | L24: 0
H25: 0 | J25: 0 | L25: 0
H26: 0 | J26: 0 | L26: 0
H27: 0 | J27: 0 | L27: 0
H28: 0 | J28: 0 | L28: 0
H29: 0 | J29: 0 | L29: 0
H30: 0 | J30: 0 | L30: 0
H31: 0 | J31: 0 | L31: 0
H32: 0 | J32: 0 | L32: 0
H33: 0 | J33: 0 | L33: 0
H34: 0 | J34: 0 | L34: 0
H35: 0 | J35: 0 | L35: 0
H36: 0 | J36: 0 | L36: 0
H37: 0 | J37: 0 | L37: 0
H38: 0 | J38: 0 | L38: 0
H39: 0 | J39: 0 | L39: 0
H40: 0 | J40: 0 | L40: 0
H41: 0 | J41: 0 | L41: 0
H42: 0 | J42: 0 | L42: 0
H43: 0 | J43: 0 | L43: 0
H44: 0 | J44: 0 | L44: 0
H45: 0 | J45: 0 | L45: 0
H46: 0 | J46: 0 | L46: 0
H47: 0 | J47: 0 | L47: 0
H48: 0 | J48: 0 | L48: 0
H49: 0 | J49: 0 | L49: 0
H50: 0 | J50: 0 | L50: 0
H51: 0 | J51: 0 | L51: 0
H52: 0 | J52: 0 | L52: 0
A53: OBS:. | F53: TOTAIS | G53: =SUM(H21:H52) -> 10000 | I53: =SUM(J21:J52) -> 12000 | K53: =SUM(L21:L52) -> 14000
A55: DATA | G55: APROVADO
A56: 2015-01-05

Sheet 4.2
A1: =+'itens projetos'!B27 -> Impressão em braile
A2: VERBA | B2: VR. NOTA | C2: N º CHEQUE | D2: DATA DA SAÍDA | E2: DESCRIÇÃO DA SAÍDA | F2: NF | G2: DATA DA NOTA | H2: QTDADE | I2: ='itens projetos'!C27 -> 11182
A3: =+'itens projetos'!I27 -> 9000
A7: =SUM(A3:A6) -> 9000 | B7: =SUM(B3:B6) -> 0
A8: SALDO | B8: =A7-B7 -> 9000
A10: COTAÇÃO DE MATERIAIS E SERVIÇOS
G13: 1 - Fornecedor | I13: 2 - Fornecedor | K13: 3 - Fornecedor
A14: =+'itens projetos'!A2:M2 -> MARYSIA PORTINARI - UNIVER SO PRÉ-EXISTENTE - PRONAC: 182445
A16: QTDE | B16: UNI | C16: COD | D16: DESCRIÇÃO DO MATERIAL | G16: V. UNI | H16: V. TOTAL | I16: V. UNI | J16: V. TOTAL | K16: V. UNI | L16: V. TOTAL
C17: 3.20 | H17: =A17*G17 -> 0 | J17: =I17*A17 -> 0 | L17: =K17*A17 -> 0
H18: =A18*G18 -> 0 | J18: 0 | L18: =K18*A18 -> 0
H19: 0 | J19: 0 | L19: 0
H20: 0 | J20: 0 | L20: 0
H21: 0 | J21: 0 | L21: 0
H22: 0 | J22: 0 | L22: 0
H23: 0 | J23: 0 | L23: 0
H24: 0 | J24: 0 | L24: 0
H25: 0 | J25: 0 | L25: 0
H26: 0 | J26: 0 | L26: 0
H27: 0 | J27: 0 | L27: 0
H28: 0 | J28: 0 | L28: 0
H29: 0 | J29: 0 | L29: 0
H30: 0 | J30: 0 | L30: 0
H31: 0 | J31: 0 | L31: 0
H32: 0 | J32: 0 | L32: 0
H33: 0 | J33: 0 | L33: 0
H34: 0 | J34: 0 | L34: 0
H35: 0 | J35: 0 | L35: 0
H36: 0 | J36: 0 | L36: 0
H37: 0 | J37: 0 | L37: 0
H38: 0 | J38: 0 | L38: 0
H39: 0 | J39: 0 | L39: 0
H40: 0 | J40: 0 | L40: 0
H41: 0 | J41: 0 | L41: 0
H42: 0 | J42: 0 | L42: 0
H43: 0 | J43: 0 | L43: 0
H44: 0 | J44: 0 | L44: 0
H45: 0 | J45: 0 | L45: 0
H46: 0 | J46: 0 | L46: 0
H47: 0 | J47: 0 | L47: 0
H48: 0 | J48: 0 | L48: 0
A49: OBS:. | F49: TOTAIS | G49: =SUM(H17:H48) -> 0 | I49: =SUM(J17:J48) -> 0 | K49: =SUM(L17:L48) -> 0
A51: DATA | G51: APROVADO
A52: 2013-05-28

Sheet 4.3
A1: =+'itens projetos'!B28 -> Intérprete de libras
A2: VERBA | B2: VR. NOTA | C2: N º CHEQUE | D2: DATA DA SAÍDA | E2: DESCRIÇÃO DA SAÍDA | F2: NF | G2: DATA DA NOTA | H2: QTDADE | I2: ='itens projetos'!C28 -> 11183
A3: =+'itens projetos'!I28 -> 3200
A7: =SUM(A3:A6) -> 3200 | B7: =SUM(B3:B6) -> 0
A8: SALDO | B8: =A7-B7 -> 3200
A10: COTAÇÃO DE MATERIAIS E SERVIÇOS
G13: 1 - Fornecedor | I13: 2 - Fornecedor | K13: 3 - Fornecedor
A14: =+'itens projetos'!A2:M2 -> MARYSIA PORTINARI - UNIVER SO PRÉ-EXISTENTE - PRONAC: 182445 | G14: COR E TAL | I14: EPS | K14: VISÃO
G15: CNP: 10.875.118/0001-17 | I15: CNPJ: 05.004.458/0001-32 | K15: CNPJ: 22.530.132/0001-68
A16: QTDE | B16: UNI | C16: COD | D16: DESCRIÇÃO DO MATERIAL | G16: V. UNI | H16: V. TOTAL | I16: V. UNI | J16: V. TOTAL | K16: V. UNI | L16: V. TOTAL
A17: 1 | C17: 24 | D17: PROJETO DE COMUNICAÇÃO DE VISUAL | G17: 10000 | H17: =A17*G17 -> 10000 | I17: 12000 | J17: 12000 | K17: 15000 | L17: =K17*A17 -> 15000
H18: =A18*G18 -> 0 | J18: =I18*A18 -> 0 | L18: =K18*A18 -> 0
H19: 0 | J19: 0 | L19: 0
H20: 0 | J20: 0 | L20: 0
H21: 0 | J21: 0 | L21: 0
H22: 0 | J22: 0 | L22: 0
H23: 0 | J23: 0 | L23: 0
H24: 0 | J24: 0 | L24: 0
H25: 0 | J25: 0 | L25: 0
H26: 0 | J26: 0 | L26: 0
H27: 0 | J27: 0 | L27: 0
H28: 0 | J28: 0 | L28: 0
H29: 0 | J29: 0 | L29: 0
H30: 0 | J30: 0 | L30: 0
H31: 0 | J31: 0 | L31: 0
H32: 0 | J32: 0 | L32: 0
H33: 0 | J33: 0 | L33: 0
H34: 0 | J34: 0 | L34: 0
H35: 0 | J35: 0 | L35: 0
H36: 0 | J36: 0 | L36: 0
H37: 0 | J37: 0 | L37: 0
H38: 0 | J38: 0 | L38: 0
H39: 0 | J39: 0 | L39: 0
H40: 0 | J40: 0 | L40: 0
H41: 0 | J41: 0 | L41: 0
H42: 0 | J42: 0 | L42: 0
H43: 0 | J43: 0 | L43: 0
H44: 0 | J44: 0 | L44: 0
H45: 0 | J45: 0 | L45: 0
H46: 0 | J46: 0 | L46: 0
H47: 0 | J47: 0 | L47: 0
H48: 0 | J48: 0 | L48: 0
A49: OBS:. | F49: TOTAIS | G49: =SUM(H17:H48) -> 10000 | I49: =SUM(J17:J48) -> 12000 | K49: =SUM(L17:L48) -> 15000
A51: DATA | G51: APROVADO
A52: 2017-07-08

Sheet 4.10
A1: =+'itens projetos'!B29 -> Locação de Equipamento de projeção
A2: VERBA | B2: VR. NOTA | C2: N º CHEQUE | D2: DATA DA SAÍDA | E2: DESCRIÇÃO DA SAÍDA | F2: NF | G2: DATA DA NOTA | H2: QTDADE | I2: ='itens projetos'!C29 -> 11184
A3: =+'itens projetos'!I29 -> 3000
A20: =SUM(A3:A5) -> 3000 | B20: =SUM(B3:B19) -> 0
A21: SALDO | B21: =A20-B20 -> 3000
A25: COTAÇÃO DE MATERIAIS E SERVIÇOS
G28: 1 - Fornecedor | I28: 2 - Fornecedor | K28: 3 - Fornecedor
A29: =+'itens projetos'!A2:M2 -> MARYSIA PORTINARI - UNIVER SO PRÉ-EXISTENTE - PRONAC: 182445
A31: QTDE | B31: UNI | C31: COD | D31: DESCRIÇÃO DO MATERIAL | G31: V. UNI | H31: V. TOTAL | I31: V. UNI | J31: V. TOTAL | K31: V. UNI | L31: V. TOTAL
C32: 1.5 | H32: =A32*G32 -> 0 | J32: =I32*A32 -> 0 | L32: =K32*A32 -> 0
H33: =A33*G33 -> 0 | J33: =I33*A33 -> 0 | L33: =K33*A33 -> 0
H34: 0 | J34: 0 | L34: 0
H35: 0 | J35: 0 | L35: 0
H36: 0 | J36: 0 | L36: 0
H37: 0 | J37: 0 | L37: 0
H38: 0 | J38: 0 | L38: 0
H39: 0 | J39: 0 | L39: 0
H40: 0 | J40: 0 | L40: 0
H41: 0 | J41: 0 | L41: 0
H42: 0 | J42: 0 | L42: 0
H43: 0 | J43: 0 | L43: 0
H44: 0 | J44: 0 | L44: 0
H45: 0 | J45: 0 | L45: 0
H46: 0 | J46: 0 | L46: 0
H47: 0 | J47: 0 | L47: 0
H48: 0 | J48: 0 | L48: 0
H49: 0 | J49: 0 | L49: 0
H50: 0 | J50: 0 | L50: 0
H51: 0 | J51: 0 | L51: 0
H52: 0 | J52: 0 | L52: 0
H53: 0 | J53: 0 | L53: 0
H54: 0 | J54: 0 | L54: 0
H55: 0 | J55: 0 | L55: 0
H56: 0 | J56: 0 | L56: 0
H57: 0 | J57: 0 | L57: 0
H58: 0 | J58: 0 | L58: 0
H59: 0 | J59: 0 | L59: 0
H60: 0 | J60: 0 | L60: 0
H61: 0 | J61: 0 | L61: 0
H62: 0 | J62: 0 | L62: 0
H63: 0 | J63: 0 | L63: 0
A64: OBS:. | F64: TOTAIS | G64: =SUM(H32:H63) -> 0 | I64: =SUM(J32:J63) -> 0 | K64: =SUM(L32:L63) -> 0
A66: DATA | I66: APROVADO

Sheet 5.1
A1: =+'itens projetos'!B30 -> Locação de Espaço para Exposição
A2: VERBA | B2: VR. NOTA | C2: N º CHEQUE | D2: DATA DA SAÍDA | E2: DESCRIÇÃO DA SAÍDA | F2: NF | G2: DATA DA NOTA | H2: QTDADE | I2: ='itens projetos'!C30 -> 11185
A3: =+'itens projetos'!I30 -> 5000
A7: =SUM(A3:A6) -> 5000 | B7: =SUM(B3:B6) -> 0
A8: SALDO | B8: =A7-B7 -> 5000
A10: COTAÇÃO DE MATERIAIS E SERVIÇOS
G13: 1 - Fornecedor | I13: 2 - Fornecedor | K13: 3 - Fornecedor
A14: =+'itens projetos'!A2:M2 -> MARYSIA PORTINARI - UNIVER SO PRÉ-EXISTENTE - PRONAC: 182445 | G14: COR E TAL | I14: PEOPLE | K14: BNER
G15: CNPJ: 10.875.118/0001-17 | I15: CNPJ: 13.933.022/0001-56 | K15: CNPJ: 82.344.425/0001-82
A16: QTDE | B16: UNI | C16: COD | D16: DESCRIÇÃO DO MATERIAL | G16: V. UNI | H16: V. TOTAL | I16: V. UNI | J16: V. TOTAL | K16: V. UNI | L16: V. TOTAL
A17: 1 | C17: 26 | D17: ASSISTENTE DE PRODUÇÃO | G17: 180 | H17: =A17*G17 -> 180 | I17: 200 | J17: 200 | K17: 250 | L17: =K17*A17 -> 250
H18: =A18*G18 -> 0 | J18: =I18*A18 -> 0 | L18: =K18*A18 -> 0
H19: 0 | J19: 0 | L19: 0
H20: 0 | J20: 0 | L20: 0
H21: 0 | J21: 0 | L21: 0
H22: 0 | J22: 0 | L22: 0
H23: 0 | J23: 0 | L23: 0
H24: 0 | J24: 0 | L24: 0
H25: 0 | J25: 0 | L25: 0
H26: 0 | J26: 0 | L26: 0
H27: 0 | J27: 0 | L27: 0
H28: 0 | J28: 0 | L28: 0
H29: 0 | J29: 0 | L29: 0
H30: 0 | J30: 0 | L30: 0
H31: 0 | J31: 0 | L31: 0
H32: 0 | J32: 0 | L32: 0
H33: 0 | J33: 0 | L33: 0
H34: 0 | J34: 0 | L34: 0
H35: 0 | J35: 0 | L35: 0
H36: 0 | J36: 0 | L36: 0
H37: 0 | J37: 0 | L37: 0
H38: 0 | J38: 0 | L38: 0
H39: 0 | J39: 0 | L39: 0
H40: 0 | J40: 0 | L40: 0
H41: 0 | J41: 0 | L41: 0
H42: 0 | J42: 0 | L42: 0
H43: 0 | J43: 0 | L43: 0
H44: 0 | J44: 0 | L44: 0
H45: 0 | J45: 0 | L45: 0
H46: 0 | J46: 0 | L46: 0
H47: 0 | J47: 0 | L47: 0
H48: 0 | J48: 0 | L48: 0
A49: OBS:. | F49: TOTAIS | G49: =SUM(H17:H48) -> 180 | I49: =SUM(J17:J48) -> 200 | K49: =SUM(L17:L48) -> 250
A51: DATA | G51: APROVADO
A52: 2017-07-08

Sheet 6.2
A1: =+'itens projetos'!B31 -> Locação de Mobiliário
A2: VERBA | B2: VR. NOTA | C2: N º CHEQUE | D2: DATA DA SAÍDA | E2: DESCRIÇÃO DA SAÍDA | F2: NF | G2: DATA DA NOTA | H2: QTDADE | I2: ='itens projetos'!C31 -> 11186
A3: =+'itens projetos'!I31 -> 2500
A7: =SUM(A3:A6) -> 2500 | B7: =SUM(B3:B6) -> 0
A8: SALDO | B8: =A7-B7 -> 2500
A10: COTAÇÃO DE MATERIAIS E SERVIÇOS
G13: 1 - Fornecedor | I13: 2 - Fornecedor | K13: 3 - Fornecedor
A14: =+'itens projetos'!A2:M2 -> MARYSIA PORTINARI - UNIVER SO PRÉ-EXISTENTE - PRONAC: 182445
A16: QTDE | B16: UNI | C16: COD | D16: DESCRIÇÃO DO MATERIAL | G16: V. UNI | H16: V. TOTAL | I16: V. UNI | J16: V. TOTAL | K16: V. UNI | L16: V. TOTAL
C17: 4.3 | H17: =A17*G17 -> 0 | L17: =K17*A17 -> 0
H18: =A18*G18 -> 0 | J18: =I18*A18 -> 0 | L18: =K18*A18 -> 0
H19: 0 | J19: 0 | L19: 0
H20: 0 | J20: 0 | L20: 0
H21: 0 | J21: 0 | L21: 0
H22: 0 | J22: 0 | L22: 0
H23: 0 | J23: 0 | L23: 0
H24: 0 | J24: 0 | L24: 0
H25: 0 | J25: 0 | L25: 0
H26: 0 | J26: 0 | L26: 0
H27: 0 | J27: 0 | L27: 0
H28: 0 | J28: 0 | L28: 0
H29: 0 | J29: 0 | L29: 0
H30: 0 | J30: 0 | L30: 0
H31: 0 | J31: 0 | L31: 0
H32: 0 | J32: 0 | L32: 0
H33: 0 | J33: 0 | L33: 0
H34: 0 | J34: 0 | L34: 0
H35: 0 | J35: 0 | L35: 0
H36: 0 | J36: 0 | L36: 0
H37: 0 | J37: 0 | L37: 0
H38: 0 | J38: 0 | L38: 0
H39: 0 | J39: 0 | L39: 0
H40: 0 | J40: 0 | L40: 0
H41: 0 | J41: 0 | L41: 0
H42: 0 | J42: 0 | L42: 0
H43: 0 | J43: 0 | L43: 0
H44: 0 | J44: 0 | L44: 0
H45: 0 | J45: 0 | L45: 0
H46: 0 | J46: 0 | L46: 0
H47: 0 | J47: 0 | L47: 0
H48: 0 | J48: 0 | L48: 0
A49: OBS:. | F49: TOTAIS | G49: =SUM(H17:H48) -> 0 | I49: =SUM(J17:J48) -> 0 | K49: =SUM(L17:L48) -> 0
A51: DATA | G51: APROVADO
A52: 2013-05-28

Sheet 6.3
A1: =+'itens projetos'!B32 -> Montagem e desmontagem
A2: VERBA | B2: VR. NOTA | C2: N º CHEQUE | D2: DATA DA SAÍDA | E2: DESCRIÇÃO DA SAÍDA | F2: NF | G2: DATA DA NOTA | H2: QTDADE | I2: ='itens projetos'!C32 -> 11187
A3: =+'itens projetos'!I32 -> 2500
A7: =SUM(A3:A6) -> 2500 | B7: =SUM(B3:B6) -> 0
A8: SALDO | B8: =A7-B7 -> 2500
A10: COTAÇÃO DE MATERIAIS E SERVIÇOS
G13: 1 - Fornecedor | I13: 2 - Fornecedor | K13: 3 - Fornecedor
A14: =+'itens projetos'!A2:M2 -> MARYSIA PORTINARI - UNIVER SO PRÉ-EXISTENTE - PRONAC: 182445
A16: QTDE | B16: UNI | C16: COD | D16: DESCRIÇÃO DO MATERIAL | G16: V. UNI | H16: V. TOTAL | I16: V. UNI | J16: V. TOTAL | K16: V. UNI | L16: V. TOTAL
C17: 4.3 | H17: =A17*G17 -> 0 | L17: =K17*A17 -> 0
H18: =A18*G18 -> 0 | J18: =I18*A18 -> 0 | L18: =K18*A18 -> 0
H19: 0 | J19: 0 | L19: 0
H20: 0 | J20: 0 | L20: 0
H21: 0 | J21: 0 | L21: 0
H22: 0 | J22: 0 | L22: 0
H23: 0 | J23: 0 | L23: 0
H24: 0 | J24: 0 | L24: 0
H25: 0 | J25: 0 | L25: 0
H26: 0 | J26: 0 | L26: 0
H27: 0 | J27: 0 | L27: 0
H28: 0 | J28: 0 | L28: 0
H29: 0 | J29: 0 | L29: 0
H30: 0 | J30: 0 | L30: 0
H31: 0 | J31: 0 | L31: 0
H32: 0 | J32: 0 | L32: 0
H33: 0 | J33: 0 | L33: 0
H34: 0 | J34: 0 | L34: 0
H35: 0 | J35: 0 | L35: 0
H36: 0 | J36: 0 | L36: 0
H37: 0 | J37: 0 | L37: 0
H38: 0 | J38: 0 | L38: 0
H39: 0 | J39: 0 | L39: 0
H40: 0 | J40: 0 | L40: 0
H41: 0 | J41: 0 | L41: 0
H42: 0 | J42: 0 | L42: 0
H43: 0 | J43: 0 | L43: 0
H44: 0 | J44: 0 | L44: 0
H45: 0 | J45: 0 | L45: 0
H46: 0 | J46: 0 | L46: 0
H47: 0 | J47: 0 | L47: 0
H48: 0 | J48: 0 | L48: 0
A49: OBS:. | F49: TOTAIS | G49: =SUM(H17:H48) -> 0 | I49: =SUM(J17:J48) -> 0 | K49: =SUM(L17:L48) -> 0
A51: DATA | G51: APROVADO
A52: 2013-05-28

Sheet 6.4
A1: =+'itens projetos'!B33 -> Projeto cenográfico
A2: VERBA | B2: VR. NOTA | C2: N º CHEQUE | D2: DATA DA SAÍDA | E2: DESCRIÇÃO DA SAÍDA | F2: NF | G2: DATA DA NOTA | H2: QTDADE | I2: ='itens projetos'!C33 -> 11188
A3: =+'itens projetos'!I33 -> 6000
A7: =SUM(A3:A6) -> 6000 | B7: =SUM(B3:B6) -> 0
A8: SALDO | B8: =A7-B7 -> 6000
A10: COTAÇÃO DE MATERIAIS E SERVIÇOS
G13: 1 - Fornecedor | I13: 2 - Fornecedor | K13: 3 - Fornecedor
A14: =+'itens projetos'!A2:M2 -> MARYSIA PORTINARI - UNIVER SO PRÉ-EXISTENTE - PRONAC: 182445
A16: QTDE | B16: UNI | C16: COD | D16: DESCRIÇÃO DO MATERIAL | G16: V. UNI | H16: V. TOTAL | I16: V. UNI | J16: V. TOTAL | K16: V. UNI | L16: V. TOTAL
C17: 4.3 | H17: =A17*G17 -> 0 | L17: =K17*A17 -> 0
H18: =A18*G18 -> 0 | J18: =I18*A18 -> 0 | L18: =K18*A18 -> 0
H19: 0 | J19: 0 | L19: 0
H20: 0 | J20: 0 | L20: 0
H21: 0 | J21: 0 | L21: 0
H22: 0 | J22: 0 | L22: 0
H23: 0 | J23: 0 | L23: 0
H24: 0 | J24: 0 | L24: 0
H25: 0 | J25: 0 | L25: 0
H26: 0 | J26: 0 | L26: 0
H27: 0 | J27: 0 | L27: 0
H28: 0 | J28: 0 | L28: 0
H29: 0 | J29: 0 | L29: 0
H30: 0 | J30: 0 | L30: 0
H31: 0 | J31: 0 | L31: 0
H32: 0 | J32: 0 | L32: 0
H33: 0 | J33: 0 | L33: 0
H34: 0 | J34: 0 | L34: 0
H35: 0 | J35: 0 | L35: 0
H36: 0 | J36: 0 | L36: 0
H37: 0 | J37: 0 | L37: 0
H38: 0 | J38: 0 | L38: 0
H39: 0 | J39: 0 | L39: 0
H40: 0 | J40: 0 | L40: 0
H41: 0 | J41: 0 | L41: 0
H42: 0 | J42: 0 | L42: 0
H43: 0 | J43: 0 | L43: 0
H44: 0 | J44: 0 | L44: 0
H45: 0 | J45: 0 | L45: 0
H46: 0 | J46: 0 | L46: 0
H47: 0 | J47: 0 | L47: 0
H48: 0 | J48: 0 | L48: 0
A49: OBS:. | F49: TOTAIS | G49: =SUM(H17:H48) -> 0 | I49: =SUM(J17:J48) -> 0 | K49: =SUM(L17:L48) -> 0
A51: DATA | G51: APROVADO
A52: 2013-05-28

Sheet 6.5
A1: =+'itens projetos'!B34 -> Transporte de material
A2: VERBA | B2: VR. NOTA | C2: N º CHEQUE | D2: DATA DA SAÍDA | E2: DESCRIÇÃO DA SAÍDA | F2: NF | G2: DATA DA NOTA | H2: QTDADE | I2: ='itens projetos'!C34 -> 11189
A3: =+'itens projetos'!I34 -> 2400
A7: =SUM(A3:A6) -> 2400 | B7: =SUM(B3:B6) -> 0
A8: SALDO | B8: =A7-B7 -> 2400
A10: COTAÇÃO DE MATERIAIS E SERVIÇOS
G13: 1 - Fornecedor | I13: 2 - Fornecedor | K13: 3 - Fornecedor
A14: =+'itens projetos'!A2:M2 -> MARYSIA PORTINARI - UNIVER SO PRÉ-EXISTENTE - PRONAC: 182445
A16: QTDE | B16: UNI | C16: COD | D16: DESCRIÇÃO DO MATERIAL | G16: V. UNI | H16: V. TOTAL | I16: V. UNI | J16: V. TOTAL | K16: V. UNI | L16: V. TOTAL
C17: 4.3 | H17: =A17*G17 -> 0 | L17: =K17*A17 -> 0
H18: =A18*G18 -> 0 | J18: =I18*A18 -> 0 | L18: =K18*A18 -> 0
H19: 0 | J19: 0 | L19: 0
H20: 0 | J20: 0 | L20: 0
H21: 0 | J21: 0 | L21: 0
H22: 0 | J22: 0 | L22: 0
H23: 0 | J23: 0 | L23: 0
H24: 0 | J24: 0 | L24: 0
H25: 0 | J25: 0 | L25: 0
H26: 0 | J26: 0 | L26: 0
H27: 0 | J27: 0 | L27: 0
H28: 0 | J28: 0 | L28: 0
H29: 0 | J29: 0 | L29: 0
H30: 0 | J30: 0 | L30: 0
H31: 0 | J31: 0 | L31: 0
H32: 0 | J32: 0 | L32: 0
H33: 0 | J33: 0 | L33: 0
H34: 0 | J34: 0 | L34: 0
H35: 0 | J35: 0 | L35: 0
H36: 0 | J36: 0 | L36: 0
H37: 0 | J37: 0 | L37: 0
H38: 0 | J38: 0 | L38: 0
H39: 0 | J39: 0 | L39: 0
H40: 0 | J40: 0 | L40: 0
H41: 0 | J41: 0 | L41: 0
H42: 0 | J42: 0 | L42: 0
H43: 0 | J43: 0 | L43: 0
H44: 0 | J44: 0 | L44: 0
H45: 0 | J45: 0 | L45: 0
H46: 0 | J46: 0 | L46: 0
H47: 0 | J47: 0 | L47: 0
H48: 0 | J48: 0 | L48: 0
A49: OBS:. | F49: TOTAIS | G49: =SUM(H17:H48) -> 0 | I49: =SUM(J17:J48) -> 0 | K49: =SUM(L17:L48) -> 0
A51: DATA | G51: APROVADO
A52: 2013-05-28

Sheet 6.6
A1: =+'itens projetos'!B35 -> Remuneração para captação de recursos
A2: VERBA | B2: VR. NOTA | C2: N º CHEQUE | D2: DATA DA SAÍDA | E2: DESCRIÇÃO DA SAÍDA | F2: NF | G2: DATA DA NOTA | H2: QTDADE | I2: ='itens projetos'!C35 -> 11190
A3: =+'itens projetos'!I35 -> 60110.1 | B3: 60110.1 | C3: 850005 | D3: 2019-01-22 | E3: RIBEIRO DO VALLE CONS. E ASSESSORIA EM CAPTAÇÃO DE REC E G CULT. LTDA
A7: =SUM(A3:A6) -> 60110.1 | B7: =SUM(B3:B6) -> 60110.1
A8: SALDO | B8: =A7-B7 -> 0
A10: COTAÇÃO DE MATERIAIS E SERVIÇOS
G13: 1 - Fornecedor | I13: 2 - Fornecedor | K13: 3 - Fornecedor
A14: =+'itens projetos'!A2:M2 -> MARYSIA PORTINARI - UNIVER SO PRÉ-EXISTENTE - PRONAC: 182445
A16: QTDE | B16: UNI | C16: COD | D16: DESCRIÇÃO DO MATERIAL | G16: V. UNI | H16: V. TOTAL | I16: V. UNI | J16: V. TOTAL | K16: V. UNI | L16: V. TOTAL
C17: 4.3 | H17: =A17*G17 -> 0 | L17: =K17*A17 -> 0
H18: =A18*G18 -> 0 | J18: =I18*A18 -> 0 | L18: =K18*A18 -> 0
H19: 0 | J19: 0 | L19: 0
H20: 0 | J20: 0 | L20: 0
H21: 0 | J21: 0 | L21: 0
H22: 0 | J22: 0 | L22: 0
H23: 0 | J23: 0 | L23: 0
H24: 0 | J24: 0 | L24: 0
H25: 0 | J25: 0 | L25: 0
H26: 0 | J26: 0 | L26: 0
H27: 0 | J27: 0 | L27: 0
H28: 0 | J28: 0 | L28: 0
H29: 0 | J29: 0 | L29: 0
H30: 0 | J30: 0 | L30: 0
H31: 0 | J31: 0 | L31: 0
H32: 0 | J32: 0 | L32: 0
H33: 0 | J33: 0 | L33: 0
H34: 0 | J34: 0 | L34: 0
H35: 0 | J35: 0 | L35: 0
H36: 0 | J36: 0 | L36: 0
H37: 0 | J37: 0 | L37: 0
H38: 0 | J38: 0 | L38: 0
H39: 0 | J39: 0 | L39: 0
H40: 0 | J40: 0 | L40: 0
H41: 0 | J41: 0 | L41: 0
H42: 0 | J42: 0 | L42: 0
H43: 0 | J43: 0 | L43: 0
H44: 0 | J44: 0 | L44: 0
H45: 0 | J45: 0 | L45: 0
H46: 0 | J46: 0 | L46: 0
H47: 0 | J47: 0 | L47: 0
H48: 0 | J48: 0 | L48: 0
A49: OBS:. | F49: TOTAIS | G49: =SUM(H17:H48) -> 0 | I49: =SUM(J17:J48) -> 0 | K49: =SUM(L17:L48) -> 0
A51: DATA | G51: APROVADO
A52: 2013-05-28

Sheet 6.7
A1: =+'itens projetos'!B36 -> Custos de Administração
A2: VERBA | B2: VR. NOTA | C2: N º CHEQUE | D2: DATA DA SAÍDA | E2: DESCRIÇÃO DA SAÍDA | F2: NF | G2: DATA DA NOTA | H2: QTDADE | I2: ='itens projetos'!C36 -> 11191
A3: =+'itens projetos'!I36 -> 66789 | I3: JANEIRO | J3: TELEFONE
I4: FEVEREIRO | J4: TOTAL A UTILIZAR
I5: MARÇO | J5: 1620
I6: ABRIL | J6: 9 MESES / R$ 180,00
I7: MAIO
I8: JUNHO
I9: JULHO
I10: AGOSTO
I11: SETEMBRO
H12: TOTAL | J12: =SUM(B3:B11) -> 0
I14: JANEIRO | J14: MATERIAL
J15: TOTAL A UTILIZAR
J16: 5000
J17: 1 MES R$ 5.000,00
H18: TOTAL | J18: =SUM(B14) -> 0
B20: 1737 | C20: 850015 | D20: 2019-01-31 | E20: JOSIANE NACAMUTA - ME | F20: NF 0779 | G20: 2019-01-30 | H20: 3 | I20: JANEIRO | J20: CART. COLORIDO
I21: FEVEREIRO | J21: TOTAL A UTILIZAR
I22: MARÇO | J22: 15633
I23: ABRIL | J23: 9 MESES/ R$ 1737,00
I24: MAIO
I25: JUNHO
I26: JULHO
I27: AGOSTO
I28: SETEMBRO
H29: TOTAL | J29: =SUM(B20:B28) -> 1737
B31: 974.7 | C31: 850015 | D31: 2019-01-31 | E31: JOSIANE NACAMUTA - ME | F31: NF 0779 | G31: 2019-01-30 | H31: 3 | I31: JANEIRO | J31: CART. PRETO
I32: FEVEREIRO | J32: TOTAL A UTILIZAR
I33: MARÇO | J33: 8772.3
I34: ABRIL | J34: 9 MESES/ R$ 974,70
I35: MAIO
I36: JUNHO
I37: JULHO
I38: AGOSTO
I39: SETEMBRO
H40: TOTAL | J40: =SUM(B31:B39) -> 974.7
B42: 202.5 | C42: 850015 | D42: 2019-01-31 | E42: JOSIANE NACAMUTA - ME | F42: NF 0779 | G42: 2019-01-30 | H42: 10 | I42: JANEIRO | J42: SULFITE
I43: FEVEREIRO | J43: TOTAL A UTILIZAR
I44: MARÇO | J44: 1822.5
I45: ABRIL | J45: 9 MESES/ R$ 202,50
I46: MAIO
I47: JUNHO
I48: JULHO
I49: AGOSTO
I50: SETEMBRO
H51: TOTAL | J51: =SUM(B42:B50) -> 202.5
I53: JANEIRO | J53: ASSIS. ADMINISTRATIVO
I54: FEVEREIRO | J54: TOTAL A UTILIZAR
I55: MARÇO | J55: 33572.2
I56: ABRIL | J56: 8 MESES/ R$ 3.750,00
I57: MAIO | J57: 1 MÊS - 3.872,20
I58: JUNHO
I59: JULHO
I60: AGOSTO
I61: SETEMBRO
H62: TOTAL | J62: =SUM(B53:B61) -> 0
A65: =SUM(A3:A64) -> 66789 | B65: =SUM(B3:B64) -> 2914.2
A66: SALDO | B66: =A65-B65 -> 63874.8
A68: COTAÇÃO DE MATERIAIS E SERVIÇOS
G71: 1 - Fornecedor | I71: 2 - Fornecedor | K71: 3 - Fornecedor
A72: =+'itens projetos'!A2:M2 -> MARYSIA PORTINARI - UNIVER SO PRÉ-EXISTENTE - PRONAC: 182445
A74: QTDE | B74: UNI | C74: COD | D74: DESCRIÇÃO DO MATERIAL | G74: V. UNI | H74: V. TOTAL | I74: V. UNI | J74: V. TOTAL | K74: V. UNI | L74: V. TOTAL
C75: 4.3 | H75: =A75*G75 -> 0 | L75: =K75*A75 -> 0
H76: =A76*G76 -> 0 | J76: =I76*A76 -> 0 | L76: =K76*A76 -> 0
H77: 0 | J77: 0 | L77: 0
H78: 0 | J78: 0 | L78: 0
H79: 0 | J79: 0 | L79: 0
H80: 0 | J80: 0 | L80: 0
H81: 0 | J81: 0 | L81: 0
H82: 0 | J82: 0 | L82: 0
H83: 0 | J83: 0 | L83: 0
H84: 0 | J84: 0 | L84: 0
H85: 0 | J85: 0 | L85: 0
H86: 0 | J86: 0 | L86: 0
H87: 0 | J87: 0 | L87: 0
H88: 0 | J88: 0 | L88: 0
H89: 0 | J89: 0 | L89: 0
H90: 0 | J90: 0 | L90: 0
H91: 0 | J91: 0 | L91: 0
H92: 0 | J92: 0 | L92: 0
H93: 0 | J93: 0 | L93: 0
H94: 0 | J94: 0 | L94: 0
H95: 0 | J95: 0 | L95: 0
H96: 0 | J96: 0 | L96: 0
H97: 0 | J97: 0 | L97: 0
H98: 0 | J98: 0 | L98: 0
H99: 0 | J99: 0 | L99: 0
H100: 0 | J100: 0 | L100: 0
H101: 0 | J101: 0 | L101: 0
H102: 0 | J102: 0 | L102: 0
H103: 0 | J103: 0 | L103: 0
H104: 0 | J104: 0 | L104: 0
H105: 0 | J105: 0 | L105: 0
H106: 0 | J106: 0 | L106: 0
A107: OBS:. | F107: TOTAIS | G107: =SUM(H75:H106) -> 0 | I107: =SUM(J75:J106) -> 0 | K107: =SUM(L75:L106) -> 0
A109: DATA | G109: APROVADO
A110: 2013-05-28

Sheet 6.8
A1: =+'itens projetos'!B37 -> Custos de Divulgação
A2: VERBA | B2: VR. NOTA | C2: N º CHEQUE | D2: DATA DA SAÍDA | E2: DESCRIÇÃO DA SAÍDA | F2: NF | G2: DATA DA NOTA | H2: QTDADE | I2: ='itens projetos'!C37 -> 11192
A3: =+'itens projetos'!I37 -> 89052 | I3: JANEIRO | J3: ASSESSORIA
I4: FEVEREIRO | J4: TOTAL A UTILIZAR
I5: MARÇO | J5: 31500
I6: ABRIL | J6: 9 MESES / R$ 3.500,00
I7: MAIO
I8: JUNHO
I9: JULHO
I10: AGOSTO
I11: SETEMBRO
I12: TOTAL | J12: =SUM(B3:B11) -> 0
B13: 2000 | C13: 850014 | D13: 2019-01-31 | E13: GALEANO INFORMATICA LTDA- ME | F13: NF 1056 | G13: 2019-01-31 | H13: 1 | I13: JANEIRO | J13: SITIO DE INTERNET
I14: FEVEREIRO | J14: TOTAL A UTILIZAR
I15: MARÇO | J15: 31500
I16: ABRIL | J16: 9 MESES / R$ 3.500,00
I17: MAIO
I18: JUNHO
I19: JULHO
I20: AGOSTO
I21: SETEMBRO
I22: TOTAL | J22: =SUM(B13:B21) -> 2000
I24: MIDIA IMPRESA
I25: 18000
I26: 1 Mês
I27: CONFECÇÃO DE CONVITES
I28: 3000
I29: 1 mês
I30: BANNERS
I31: 3500
I32: 2 meses
I34: FOLDERS
I35: 6000
I36: 1 mês
I37: PRODUÇÃO DE TEXTO
I38: 3500
I39: 1 mês
I40: PROJETO GRÁFICO
I41: 3000
I42: 1 mês
I43: REVISÃO DE TEXTO
I44: 2552
I45: 1 mês
A47: =SUM(A3:A46) -> 89052 | B47: =SUM(B3:B46) -> 2000
A48: SALDO | B48: =A47-B47 -> 87052
A50: COTAÇÃO DE MATERIAIS E SERVIÇOS
G53: 1 - Fornecedor | I53: 2 - Fornecedor | K53: 3 - Fornecedor
A54: =+'itens projetos'!A2:M2 -> MARYSIA PORTINARI - UNIVER SO PRÉ-EXISTENTE - PRONAC: 182445
A56: QTDE | B56: UNI | C56: COD | D56: DESCRIÇÃO DO MATERIAL | G56: V. UNI | H56: V. TOTAL | I56: V. UNI | J56: V. TOTAL | K56: V. UNI | L56: V. TOTAL
C57: 4.3 | H57: =A57*G57 -> 0 | L57: =K57*A57 -> 0
H58: =A58*G58 -> 0 | J58: =I58*A58 -> 0 | L58: =K58*A58 -> 0
H59: 0 | J59: 0 | L59: 0
H60: 0 | J60: 0 | L60: 0
H61: 0 | J61: 0 | L61: 0
H62: 0 | J62: 0 | L62: 0
H63: 0 | J63: 0 | L63: 0
H64: 0 | J64: 0 | L64: 0
H65: 0 | J65: 0 | L65: 0
H66: 0 | J66: 0 | L66: 0
H67: 0 | J67: 0 | L67: 0
H68: 0 | J68: 0 | L68: 0
H69: 0 | J69: 0 | L69: 0
H70: 0 | J70: 0 | L70: 0
H71: 0 | J71: 0 | L71: 0
H72: 0 | J72: 0 | L72: 0
H73: 0 | J73: 0 | L73: 0
H74: 0 | J74: 0 | L74: 0
H75: 0 | J75: 0 | L75: 0
H76: 0 | J76: 0 | L76: 0
H77: 0 | J77: 0 | L77: 0
H78: 0 | J78: 0 | L78: 0
H79: 0 | J79: 0 | L79: 0
H80: 0 | J80: 0 | L80: 0
H81: 0 | J81: 0 | L81: 0
H82: 0 | J82: 0 | L82: 0
H83: 0 | J83: 0 | L83: 0
H84: 0 | J84: 0 | L84: 0
H85: 0 | J85: 0 | L85: 0
H86: 0 | J86: 0 | L86: 0
H87: 0 | J87: 0 | L87: 0
H88: 0 | J88: 0 | L88: 0
A89: OBS:. | F89: TOTAIS | G89: =SUM(H57:H88) -> 0 | I89: =SUM(J57:J88) -> 0 | K89: =SUM(L57:L88) -> 0
A91: DATA | G91: APROVADO
A92: 2013-05-28
